{"text_format":"3","workbook":"xlsx","n_sheets":3,"sheets":["Sheet1","Sheet2","Sheet3"],"not_rendered":{"defined_names":2},"read":"whole","date_system":"1900"}

{"sheet":"Sheet1","index":0,"n_rows":1006,"n_cols":9,"rows_kept":1006}
["Period type","Period type(T)","ResID","ResID(T)","PD(T)","Period","TransNo","Amount"]
["CLLR","Hastings Councillor Payroll",200035,"Atkins, Liam","Basic Pay",201801,10000000,492.75]
["CLLR","Hastings Councillor Payroll",200035,"Atkins, Liam","Basic Pay",201802,10000008,95.37,{"$f":"SUBTOTAL(9,H2:H3)","v":588.12}]
[]
["CLLR","Hastings Councillor Payroll",200037,"Bacon, James","Basic Pay",201801,10000000,492.75]
["CLLR","Hastings Councillor Payroll",200037,"Bacon, James","Basic Pay",201802,10000008,492.75]
["CLLR","Hastings Councillor Payroll",200037,"Bacon, James","Basic Pay",201803,10000010,492.75]
["CLLR","Hastings Councillor Payroll",200037,"Bacon, James","Basic Pay",201804,10000012,502.5]
["CLLR","Hastings Councillor Payroll",200037,"Bacon, James","Basic Pay",201805,10000027,502.5]
["CLLR","Hastings Councillor Payroll",200037,"Bacon, James","Basic Pay",201806,10000043,502.5]
["CLLR","Hastings Councillor Payroll",200037,"Bacon, James","Basic Pay",201807,10000048,502.5]
["CLLR","Hastings Councillor Payroll",200037,"Bacon, James","Basic Pay",201808,10000053,502.5]
["CLLR","Hastings Councillor Payroll",200037,"Bacon, James","Basic Pay",201809,10000058,502.5]
["CLLR","Hastings Councillor Payroll",200037,"Bacon, James","Basic Pay",201810,10000062,502.5]
["CLLR","Hastings Councillor Payroll",200037,"Bacon, James","Basic Pay",201811,10000069,502.5]
["CLLR","Hastings Councillor Payroll",200037,"Bacon, James","Basic Pay",201812,10000080,502.5]
["CLLR","Hastings Councillor Payroll",200037,"Bacon, James","Basic Pay Backpay",201805,10000027,39,{"$f":"SUBTOTAL(9,H5:H17)","v":6039.75}]
[]
["CLLR","Hastings Councillor Payroll",200037,"Bacon, James","Private Car Mileage",201805,10000027,108.35]
["CLLR","Hastings Councillor Payroll",200037,"Bacon, James","Private Car Mileage",201809,10000058,33.3,{"$f":"SUBTOTAL(9,H19:H20)","v":141.64999999999998}]
[]
["CLLR","Hastings Councillor Payroll",200037,"Bacon, James","Special Responsibility",201801,10000000,80.25]
["CLLR","Hastings Councillor Payroll",200037,"Bacon, James","Special Responsibility",201802,10000008,15.53]
["CLLR","Hastings Councillor Payroll",200037,"Bacon, James","Special Responsibility Adj",201802,10000008,64.72]
["CLLR","Hastings Councillor Payroll",200037,"Bacon, James","Special Responsibility Adj",201803,10000010,-64.72]
["CLLR","Hastings Councillor Payroll",200037,"Bacon, James","Special Responsibility Backpay",201805,10000027,1.89,{"$f":"SUBTOTAL(9,H22:H26)","v":97.67}]
[]
["CLLR","Hastings Councillor Payroll",200060,"CO-OPTED MEMBER","Special Responsibility Adj",201812,10000080,70.38,70.38]
[]
["CLLR","Hastings Councillor Payroll",200068,"Batsford, Andrew","Basic Pay",201801,10000000,492.75]
["CLLR","Hastings Councillor Payroll",200068,"Batsford, Andrew","Basic Pay",201802,10000008,492.75]
["CLLR","Hastings Councillor Payroll",200068,"Batsford, Andrew","Basic Pay",201803,10000010,492.75]
["CLLR","Hastings Councillor Payroll",200068,"Batsford, Andrew","Basic Pay",201804,10000012,502.5]
["CLLR","Hastings Councillor Payroll",200068,"Batsford, Andrew","Basic Pay",201805,10000027,502.5]
["CLLR","Hastings Councillor Payroll",200068,"Batsford, Andrew","Basic Pay",201806,10000043,502.5]
["CLLR","Hastings Councillor Payroll",200068,"Batsford, Andrew","Basic Pay",201807,10000048,502.5]
["CLLR","Hastings Councillor Payroll",200068,"Batsford, Andrew","Basic Pay",201808,10000053,502.5]
["CLLR","Hastings Councillor Payroll",200068,"Batsford, Andrew","Basic Pay",201809,10000058,502.5]
["CLLR","Hastings Councillor Payroll",200068,"Batsford, Andrew","Basic Pay",201810,10000062,502.5]
["CLLR","Hastings Councillor Payroll",200068,"Batsford, Andrew","Basic Pay",201811,10000069,502.5]
["CLLR","Hastings Councillor Payroll",200068,"Batsford, Andrew","Basic Pay",201812,10000080,502.5]
["CLLR","Hastings Councillor Payroll",200068,"Batsford, Andrew","Basic Pay Backpay",201805,10000027,39,{"$f":"SUBTOTAL(9,H30:H42)","v":6039.75}]
[]
["CLLR","Hastings Councillor Payroll",200068,"Batsford, Andrew","Special Responsibility",201801,10000000,532]
["CLLR","Hastings Councillor Payroll",200068,"Batsford, Andrew","Special Responsibility",201802,10000008,532]
["CLLR","Hastings Councillor Payroll",200068,"Batsford, Andrew","Special Responsibility",201803,10000010,532]
["CLLR","Hastings Councillor Payroll",200068,"Batsford, Andrew","Special Responsibility",201804,10000012,532]
["CLLR","Hastings Councillor Payroll",200068,"Batsford, Andrew","Special Responsibility",201805,10000027,542.67]
["CLLR","Hastings Councillor Payroll",200068,"Batsford, Andrew","Special Responsibility",201806,10000043,542.67]
["CLLR","Hastings Councillor Payroll",200068,"Batsford, Andrew","Special Responsibility",201807,10000048,542.67]
["CLLR","Hastings Councillor Payroll",200068,"Batsford, Andrew","Special Responsibility",201808,10000053,542.67]
["CLLR","Hastings Councillor Payroll",200068,"Batsford, Andrew","Special Responsibility",201809,10000058,542.67]
["CLLR","Hastings Councillor Payroll",200068,"Batsford, Andrew","Special Responsibility",201810,10000062,542.67]
["CLLR","Hastings Councillor Payroll",200068,"Batsford, Andrew","Special Responsibility",201811,10000069,542.67]
["CLLR","Hastings Councillor Payroll",200068,"Batsford, Andrew","Special Responsibility",201812,10000080,542.67]
["CLLR","Hastings Councillor Payroll",200068,"Batsford, Andrew","Special Responsibility Backpay",201805,10000027,42.68,{"$f":"SUBTOTAL(9,H44:H56)","v":6512.040000000001}]
[]
["CLLR","Hastings Councillor Payroll",200074,"Beaney, Susan","Basic Pay",201801,10000000,492.75]
["CLLR","Hastings Councillor Payroll",200074,"Beaney, Susan","Basic Pay",201802,10000008,492.75]
["CLLR","Hastings Councillor Payroll",200074,"Beaney, Susan","Basic Pay",201803,10000010,492.75]
["CLLR","Hastings Councillor Payroll",200074,"Beaney, Susan","Basic Pay",201804,10000012,502.5]
["CLLR","Hastings Councillor Payroll",200074,"Beaney, Susan","Basic Pay",201805,10000027,502.5]
["CLLR","Hastings Councillor Payroll",200074,"Beaney, Susan","Basic Pay",201806,10000043,502.5]
["CLLR","Hastings Councillor Payroll",200074,"Beaney, Susan","Basic Pay",201807,10000048,502.5]
["CLLR","Hastings Councillor Payroll",200074,"Beaney, Susan","Basic Pay",201808,10000053,502.5]
["CLLR","Hastings Councillor Payroll",200074,"Beaney, Susan","Basic Pay",201809,10000058,502.5]
["CLLR","Hastings Councillor Payroll",200074,"Beaney, Susan","Basic Pay",201810,10000062,502.5]
["CLLR","Hastings Councillor Payroll",200074,"Beaney, Susan","Basic Pay",201811,10000069,502.5]
["CLLR","Hastings Councillor Payroll",200074,"Beaney, Susan","Basic Pay",201812,10000080,502.5]
["CLLR","Hastings Councillor Payroll",200074,"Beaney, Susan","Basic Pay Backpay",201805,10000027,39,{"$f":"SUBTOTAL(9,H58:H70)","v":6039.75}]
[]
["CLLR","Hastings Councillor Payroll",200074,"Beaney, Susan","Private Car Mileage",201801,10000000,100,{"$f":"SUBTOTAL(9,H72)","v":100}]
[]
["CLLR","Hastings Councillor Payroll",200074,"Beaney, Susan","Special Responsibility",201801,10000000,532]
["CLLR","Hastings Councillor Payroll",200074,"Beaney, Susan","Special Responsibility",201802,10000008,532]
["CLLR","Hastings Councillor Payroll",200074,"Beaney, Susan","Special Responsibility",201803,10000010,532]
["CLLR","Hastings Councillor Payroll",200074,"Beaney, Susan","Special Responsibility",201804,10000012,532]
["CLLR","Hastings Councillor Payroll",200074,"Beaney, Susan","Special Responsibility",201805,10000027,542.67]
["CLLR","Hastings Councillor Payroll",200074,"Beaney, Susan","Special Responsibility",201806,10000043,542.67]
["CLLR","Hastings Councillor Payroll",200074,"Beaney, Susan","Special Responsibility",201807,10000048,542.67]
["CLLR","Hastings Councillor Payroll",200074,"Beaney, Susan","Special Responsibility",201808,10000053,542.67]
["CLLR","Hastings Councillor Payroll",200074,"Beaney, Susan","Special Responsibility",201809,10000058,542.67]
["CLLR","Hastings Councillor Payroll",200074,"Beaney, Susan","Special Responsibility",201810,10000062,542.67]
["CLLR","Hastings Councillor Payroll",200074,"Beaney, Susan","Special Responsibility",201811,10000069,542.67]
["CLLR","Hastings Councillor Payroll",200074,"Beaney, Susan","Special Responsibility",201812,10000080,542.67]
["CLLR","Hastings Councillor Payroll",200074,"Beaney, Susan","Special Responsibility Backpay",201805,10000027,42.68,{"$f":"SUBTOTAL(9,H74:H86)","v":6512.040000000001}]
[]
["CLLR","Hastings Councillor Payroll",200076,"Beaver, Matthew","Basic Pay",201801,10000000,492.75]
["CLLR","Hastings Councillor Payroll",200076,"Beaver, Matthew","Basic Pay",201802,10000008,492.75]
["CLLR","Hastings Councillor Payroll",200076,"Beaver, Matthew","Basic Pay",201803,10000010,492.75]
["CLLR","Hastings Councillor Payroll",200076,"Beaver, Matthew","Basic Pay",201804,10000012,502.5]
["CLLR","Hastings Councillor Payroll",200076,"Beaver, Matthew","Basic Pay",201805,10000027,502.5]
["CLLR","Hastings Councillor Payroll",200076,"Beaver, Matthew","Basic Pay",201806,10000043,502.5]
["CLLR","Hastings Councillor Payroll",200076,"Beaver, Matthew","Basic Pay",201807,10000048,502.5]
["CLLR","Hastings Councillor Payroll",200076,"Beaver, Matthew","Basic Pay",201808,10000053,502.5]
["CLLR","Hastings Councillor Payroll",200076,"Beaver, Matthew","Basic Pay",201809,10000058,502.5]
["CLLR","Hastings Councillor Payroll",200076,"Beaver, Matthew","Basic Pay",201810,10000062,502.5]
["CLLR","Hastings Councillor Payroll",200076,"Beaver, Matthew","Basic Pay",201811,10000069,502.5]
["CLLR","Hastings Councillor Payroll",200076,"Beaver, Matthew","Basic Pay",201812,10000080,502.5]
["CLLR","Hastings Councillor Payroll",200076,"Beaver, Matthew","Basic Pay Backpay",201805,10000027,39,{"$f":"SUBTOTAL(9,H88:H100)","v":6039.75}]
[]
["CLLR","Hastings Councillor Payroll",200076,"Beaver, Matthew","Special Responsibility",201801,10000000,80.25]
["CLLR","Hastings Councillor Payroll",200076,"Beaver, Matthew","Special Responsibility",201802,10000008,80.25]
["CLLR","Hastings Councillor Payroll",200076,"Beaver, Matthew","Special Responsibility",201803,10000010,80.25]
["CLLR","Hastings Councillor Payroll",200076,"Beaver, Matthew","Special Responsibility",201804,10000012,80.25]
["CLLR","Hastings Councillor Payroll",200076,"Beaver, Matthew","Special Responsibility",201805,10000027,81.83]
["CLLR","Hastings Councillor Payroll",200076,"Beaver, Matthew","Special Responsibility",201806,10000043,81.83]
["CLLR","Hastings Councillor Payroll",200076,"Beaver, Matthew","Special Responsibility",201807,10000048,81.83]
["CLLR","Hastings Councillor Payroll",200076,"Beaver, Matthew","Special Responsibility",201808,10000053,81.83]
["CLLR","Hastings Councillor Payroll",200076,"Beaver, Matthew","Special Responsibility",201809,10000058,81.83]
["CLLR","Hastings Councillor Payroll",200076,"Beaver, Matthew","Special Responsibility",201810,10000062,81.83]
["CLLR","Hastings Councillor Payroll",200076,"Beaver, Matthew","Special Responsibility",201811,10000069,81.83]
["CLLR","Hastings Councillor Payroll",200076,"Beaver, Matthew","Special Responsibility",201812,10000080,81.83]
["CLLR","Hastings Councillor Payroll",200076,"Beaver, Matthew","Special Responsibility Backpay",201805,10000027,6.32,{"$f":"SUBTOTAL(9,H102:H114)","v":981.9600000000003}]
[]
["CLLR","Hastings Councillor Payroll",200120,"CO-OPTED MEMBER","Special Responsibility Adj",201812,10000080,602.82,602.82]
[]
["CLLR","Hastings Councillor Payroll",200121,"CO-OPTED MEMBER","Special Responsibility Adj",201812,10000080,602.82,602.82]
[]
["CLLR","Hastings Councillor Payroll",200161,"Barnett, Paul","Basic Pay",201802,10000008,397.38]
["CLLR","Hastings Councillor Payroll",200161,"Barnett, Paul","Basic Pay",201803,10000010,492.75]
["CLLR","Hastings Councillor Payroll",200161,"Barnett, Paul","Basic Pay",201804,10000012,502.5]
["CLLR","Hastings Councillor Payroll",200161,"Barnett, Paul","Basic Pay",201805,10000027,502.5]
["CLLR","Hastings Councillor Payroll",200161,"Barnett, Paul","Basic Pay",201806,10000043,502.5]
["CLLR","Hastings Councillor Payroll",200161,"Barnett, Paul","Basic Pay",201807,10000048,502.5]
["CLLR","Hastings Councillor Payroll",200161,"Barnett, Paul","Basic Pay",201808,10000053,502.5]
["CLLR","Hastings Councillor Payroll",200161,"Barnett, Paul","Basic Pay",201809,10000058,502.5]
["CLLR","Hastings Councillor Payroll",200161,"Barnett, Paul","Basic Pay",201810,10000062,502.5]
["CLLR","Hastings Councillor Payroll",200161,"Barnett, Paul","Basic Pay",201811,10000069,502.5]
["CLLR","Hastings Councillor Payroll",200161,"Barnett, Paul","Basic Pay",201812,10000080,502.5]
["CLLR","Hastings Councillor Payroll",200161,"Barnett, Paul","Basic Pay Backpay",201803,10000010,397.38]
["CLLR","Hastings Councillor Payroll",200161,"Barnett, Paul","Basic Pay Backpay",201805,10000027,27.36,{"$f":"SUBTOTAL(9,H120:H132)","v":5837.37}]
[]
["CLLR","Hastings Councillor Payroll",200163,"Battley, Andrew","Basic Pay",201803,10000010,492.75]
["CLLR","Hastings Councillor Payroll",200163,"Battley, Andrew","Basic Pay",201804,10000012,502.5]
["CLLR","Hastings Councillor Payroll",200163,"Battley, Andrew","Basic Pay",201805,10000027,502.5]
["CLLR","Hastings Councillor Payroll",200163,"Battley, Andrew","Basic Pay",201806,10000043,502.5]
["CLLR","Hastings Councillor Payroll",200163,"Battley, Andrew","Basic Pay",201807,10000048,502.5]
["CLLR","Hastings Councillor Payroll",200163,"Battley, Andrew","Basic Pay",201808,10000053,502.5]
["CLLR","Hastings Councillor Payroll",200163,"Battley, Andrew","Basic Pay",201809,10000058,502.5]
["CLLR","Hastings Councillor Payroll",200163,"Battley, Andrew","Basic Pay",201810,10000062,502.5]
["CLLR","Hastings Councillor Payroll",200163,"Battley, Andrew","Basic Pay",201811,10000069,502.5]
["CLLR","Hastings Councillor Payroll",200163,"Battley, Andrew","Basic Pay",201812,10000080,502.5]
["CLLR","Hastings Councillor Payroll",200163,"Battley, Andrew","Basic Pay Backpay",201805,10000027,27.36,{"$f":"SUBTOTAL(9,H134:H144)","v":5042.61}]
[]
["CLLR","Hastings Councillor Payroll",200168,"Beaney, Karl","Basic Pay",201803,10000010,492.75]
["CLLR","Hastings Councillor Payroll",200168,"Beaney, Karl","Basic Pay",201804,10000012,502.5]
["CLLR","Hastings Councillor Payroll",200168,"Beaney, Karl","Basic Pay",201805,10000027,502.5]
["CLLR","Hastings Councillor Payroll",200168,"Beaney, Karl","Basic Pay",201806,10000043,502.5]
["CLLR","Hastings Councillor Payroll",200168,"Beaney, Karl","Basic Pay",201807,10000048,502.5]
["CLLR","Hastings Councillor Payroll",200168,"Beaney, Karl","Basic Pay",201808,10000053,502.5]
["CLLR","Hastings Councillor Payroll",200168,"Beaney, Karl","Basic Pay",201809,10000058,502.5]
["CLLR","Hastings Councillor Payroll",200168,"Beaney, Karl","Basic Pay",201810,10000062,502.5]
["CLLR","Hastings Councillor Payroll",200168,"Beaney, Karl","Basic Pay",201811,10000069,502.5]
["CLLR","Hastings Councillor Payroll",200168,"Beaney, Karl","Basic Pay",201812,10000080,502.5]
["CLLR","Hastings Councillor Payroll",200168,"Beaney, Karl","Basic Pay Backpay",201805,10000027,27.36,{"$f":"SUBTOTAL(9,H146:H156)","v":5042.61}]
[]
["CLLR","Hastings Councillor Payroll",200170,"Berelson, Antonia","Basic Pay",201803,10000010,492.75]
["CLLR","Hastings Councillor Payroll",200170,"Berelson, Antonia","Basic Pay",201804,10000012,502.5]
["CLLR","Hastings Councillor Payroll",200170,"Berelson, Antonia","Basic Pay",201805,10000027,502.5]
["CLLR","Hastings Councillor Payroll",200170,"Berelson, Antonia","Basic Pay",201806,10000043,502.5]
["CLLR","Hastings Councillor Payroll",200170,"Berelson, Antonia","Basic Pay",201807,10000048,502.5]
["CLLR","Hastings Councillor Payroll",200170,"Berelson, Antonia","Basic Pay",201808,10000053,502.5]
["CLLR","Hastings Councillor Payroll",200170,"Berelson, Antonia","Basic Pay",201809,10000058,502.5]
["CLLR","Hastings Councillor Payroll",200170,"Berelson, Antonia","Basic Pay",201810,10000062,502.5]
["CLLR","Hastings Councillor Payroll",200170,"Berelson, Antonia","Basic Pay",201811,10000069,502.5]
["CLLR","Hastings Councillor Payroll",200170,"Berelson, Antonia","Basic Pay",201812,10000080,502.5]
["CLLR","Hastings Councillor Payroll",200170,"Berelson, Antonia","Basic Pay Backpay",201805,10000027,27.36,{"$f":"SUBTOTAL(9,H158:H168)","v":5042.61}]
[]
["CLLR","Hastings Councillor Payroll",200173,"Cartwright, Andrew","Basic Pay",201801,10000000,492.75]
["CLLR","Hastings Councillor Payroll",200173,"Cartwright, Andrew","Basic Pay",201802,10000008,95.37,{"$f":"SUBTOTAL(9,H170:H171)","v":588.12}]
[]
["CLLR","Hastings Councillor Payroll",200177,"Bishop, Heather","Basic Pay",201802,10000008,397.38]
["CLLR","Hastings Councillor Payroll",200177,"Bishop, Heather","Basic Pay",201803,10000010,492.75]
["CLLR","Hastings Councillor Payroll",200177,"Bishop, Heather","Basic Pay",201804,10000012,502.5]
["CLLR","Hastings Councillor Payroll",200177,"Bishop, Heather","Basic Pay",201805,10000027,502.5]
["CLLR","Hastings Councillor Payroll",200177,"Bishop, Heather","Basic Pay",201806,10000043,502.5]
["CLLR","Hastings Councillor Payroll",200177,"Bishop, Heather","Basic Pay",201807,10000048,502.5]
["CLLR","Hastings Councillor Payroll",200177,"Bishop, Heather","Basic Pay",201808,10000053,502.5]
["CLLR","Hastings Councillor Payroll",200177,"Bishop, Heather","Basic Pay",201809,10000058,502.5]
["CLLR","Hastings Councillor Payroll",200177,"Bishop, Heather","Basic Pay",201810,10000062,502.5]
["CLLR","Hastings Councillor Payroll",200177,"Bishop, Heather","Basic Pay",201811,10000069,502.5]
["CLLR","Hastings Councillor Payroll",200177,"Bishop, Heather","Basic Pay",201812,10000080,502.5]
["CLLR","Hastings Councillor Payroll",200177,"Bishop, Heather","Basic Pay Backpay",201803,10000010,397.38]
["CLLR","Hastings Councillor Payroll",200177,"Bishop, Heather","Basic Pay Backpay",201805,10000027,27.36,{"$f":"SUBTOTAL(9,H173:H185)","v":5837.37}]
[]
["CLLR","Hastings Councillor Payroll",200177,"Bishop, Heather","Special Responsibility",201802,10000008,104.7]
["CLLR","Hastings Councillor Payroll",200177,"Bishop, Heather","Special Responsibility",201803,10000010,129.83]
["CLLR","Hastings Councillor Payroll",200177,"Bishop, Heather","Special Responsibility",201804,10000012,129.83]
["CLLR","Hastings Councillor Payroll",200177,"Bishop, Heather","Special Responsibility",201805,10000027,127.25]
["CLLR","Hastings Councillor Payroll",200177,"Bishop, Heather","Special Responsibility",201806,10000043,127.25]
["CLLR","Hastings Councillor Payroll",200177,"Bishop, Heather","Special Responsibility",201807,10000048,127.25]
["CLLR","Hastings Councillor Payroll",200177,"Bishop, Heather","Special Responsibility",201808,10000053,127.25]
["CLLR","Hastings Councillor Payroll",200177,"Bishop, Heather","Special Responsibility",201809,10000058,127.25]
["CLLR","Hastings Councillor Payroll",200177,"Bishop, Heather","Special Responsibility",201810,10000062,127.25]
["CLLR","Hastings Councillor Payroll",200177,"Bishop, Heather","Special Responsibility",201811,10000069,127.25]
["CLLR","Hastings Councillor Payroll",200177,"Bishop, Heather","Special Responsibility",201812,10000080,127.25]
["CLLR","Hastings Councillor Payroll",200177,"Bishop, Heather","Special Responsibility",201901,10000084,129.83]
["CLLR","Hastings Councillor Payroll",200177,"Bishop, Heather","Special Responsibility Adj",201802,10000008,-104.7]
["CLLR","Hastings Councillor Payroll",200177,"Bishop, Heather","Special Responsibility Adj",201803,10000010,-2.58]
["CLLR","Hastings Councillor Payroll",200177,"Bishop, Heather","Special Responsibility Adj",201804,10000012,-2.58]
["CLLR","Hastings Councillor Payroll",200177,"Bishop, Heather","Special Responsibility Backpay",201803,10000010,102.62]
["CLLR","Hastings Councillor Payroll",200177,"Bishop, Heather","Special Responsibility Backpay",201805,10000027,7.14,{"$f":"SUBTOTAL(9,H187:H203)","v":1382.2600000000004}]
[]
["CLLR","Hastings Councillor Payroll",200179,"O'Callaghan, Margi","Basic Pay",201802,10000008,397.38]
["CLLR","Hastings Councillor Payroll",200179,"O'Callaghan, Margi","Basic Pay",201803,10000010,492.75]
["CLLR","Hastings Councillor Payroll",200179,"O'Callaghan, Margi","Basic Pay",201804,10000012,502.5]
["CLLR","Hastings Councillor Payroll",200179,"O'Callaghan, Margi","Basic Pay",201805,10000027,502.5]
["CLLR","Hastings Councillor Payroll",200179,"O'Callaghan, Margi","Basic Pay",201806,10000043,502.5]
["CLLR","Hastings Councillor Payroll",200179,"O'Callaghan, Margi","Basic Pay",201807,10000048,502.5]
["CLLR","Hastings Councillor Payroll",200179,"O'Callaghan, Margi","Basic Pay",201808,10000053,502.5]
["CLLR","Hastings Councillor Payroll",200179,"O'Callaghan, Margi","Basic Pay",201809,10000058,502.5]
["CLLR","Hastings Councillor Payroll",200179,"O'Callaghan, Margi","Basic Pay",201810,10000062,502.5]
["CLLR","Hastings Councillor Payroll",200179,"O'Callaghan, Margi","Basic Pay",201811,10000069,502.5]
["CLLR","Hastings Councillor Payroll",200179,"O'Callaghan, Margi","Basic Pay",201812,10000080,502.5]
["CLLR","Hastings Councillor Payroll",200179,"O'Callaghan, Margi","Basic Pay Backpay",201803,10000010,397.38]
["CLLR","Hastings Councillor Payroll",200179,"O'Callaghan, Margi","Basic Pay Backpay",201805,10000027,27.36,{"$f":"SUBTOTAL(9,H205:H217)","v":5837.37}]
[]
["CLLR","Hastings Councillor Payroll",200179,"O'Callaghan, Margi","Special Responsibility",201802,10000008,65.99]
["CLLR","Hastings Councillor Payroll",200179,"O'Callaghan, Margi","Special Responsibility",201803,10000010,81.83]
["CLLR","Hastings Councillor Payroll",200179,"O'Callaghan, Margi","Special Responsibility",201804,10000012,81.83]
["CLLR","Hastings Councillor Payroll",200179,"O'Callaghan, Margi","Special Responsibility",201805,10000027,81.83]
["CLLR","Hastings Councillor Payroll",200179,"O'Callaghan, Margi","Special Responsibility",201806,10000043,81.83]
["CLLR","Hastings Councillor Payroll",200179,"O'Callaghan, Margi","Special Responsibility",201807,10000048,81.83]
["CLLR","Hastings Councillor Payroll",200179,"O'Callaghan, Margi","Special Responsibility",201808,10000053,81.83]
["CLLR","Hastings Councillor Payroll",200179,"O'Callaghan, Margi","Special Responsibility",201809,10000058,81.83]
["CLLR","Hastings Councillor Payroll",200179,"O'Callaghan, Margi","Special Responsibility",201810,10000062,81.83]
["CLLR","Hastings Councillor Payroll",200179,"O'Callaghan, Margi","Special Responsibility",201811,10000069,81.83]
["CLLR","Hastings Councillor Payroll",200179,"O'Callaghan, Margi","Special Responsibility",201812,10000080,81.83]
["CLLR","Hastings Councillor Payroll",200179,"O'Callaghan, Margi","Special Responsibility Adj",201802,10000008,-65.99]
["CLLR","Hastings Councillor Payroll",200179,"O'Callaghan, Margi","Special Responsibility Adj",201803,10000010,-1.58]
["CLLR","Hastings Councillor Payroll",200179,"O'Callaghan, Margi","Special Responsibility Adj",201804,10000012,-1.58]
["CLLR","Hastings Councillor Payroll",200179,"O'Callaghan, Margi","Special Responsibility Adj",201806,10000043,104.04]
["CLLR","Hastings Councillor Payroll",200179,"O'Callaghan, Margi","Special Responsibility Adj",201807,10000048,104.04]
["CLLR","Hastings Councillor Payroll",200179,"O'Callaghan, Margi","Special Responsibility Backpay",201803,10000010,64.72]
["CLLR","Hastings Councillor Payroll",200179,"O'Callaghan, Margi","Special Responsibility Backpay",201805,10000027,4.5,{"$f":"SUBTOTAL(9,H219:H236)","v":1092.4399999999998}]
[]
["CLLR","Hastings Councillor Payroll",200181,"Cox, Ruby","Basic Pay",201802,10000008,397.38]
["CLLR","Hastings Councillor Payroll",200181,"Cox, Ruby","Basic Pay",201803,10000010,492.75]
["CLLR","Hastings Councillor Payroll",200181,"Cox, Ruby","Basic Pay",201804,10000012,502.5]
["CLLR","Hastings Councillor Payroll",200181,"Cox, Ruby","Basic Pay",201805,10000027,502.5]
["CLLR","Hastings Councillor Payroll",200181,"Cox, Ruby","Basic Pay",201806,10000043,502.5]
["CLLR","Hastings Councillor Payroll",200181,"Cox, Ruby","Basic Pay",201807,10000048,502.5]
["CLLR","Hastings Councillor Payroll",200181,"Cox, Ruby","Basic Pay",201808,10000053,502.5]
["CLLR","Hastings Councillor Payroll",200181,"Cox, Ruby","Basic Pay",201809,10000058,502.5]
["CLLR","Hastings Councillor Payroll",200181,"Cox, Ruby","Basic Pay",201810,10000062,502.5]
["CLLR","Hastings Councillor Payroll",200181,"Cox, Ruby","Basic Pay",201811,10000069,502.5]
["CLLR","Hastings Councillor Payroll",200181,"Cox, Ruby","Basic Pay",201812,10000080,502.5]
["CLLR","Hastings Councillor Payroll",200181,"Cox, Ruby","Basic Pay Backpay",201803,10000010,397.38]
["CLLR","Hastings Councillor Payroll",200181,"Cox, Ruby","Basic Pay Backpay",201805,10000027,27.36,{"$f":"SUBTOTAL(9,H238:H250)","v":5837.37}]
[]
["CLLR","Hastings Councillor Payroll",200181,"Cox, Ruby","Special Responsibility",201802,10000008,85.35]
["CLLR","Hastings Councillor Payroll",200181,"Cox, Ruby","Special Responsibility",201803,10000010,105.83]
["CLLR","Hastings Councillor Payroll",200181,"Cox, Ruby","Special Responsibility",201804,10000012,105.83]
["CLLR","Hastings Councillor Payroll",200181,"Cox, Ruby","Special Responsibility",201805,10000027,105.83]
["CLLR","Hastings Councillor Payroll",200181,"Cox, Ruby","Special Responsibility",201806,10000043,105.83]
["CLLR","Hastings Councillor Payroll",200181,"Cox, Ruby","Special Responsibility",201807,10000048,105.83]
["CLLR","Hastings Councillor Payroll",200181,"Cox, Ruby","Special Responsibility",201808,10000053,105.83]
["CLLR","Hastings Councillor Payroll",200181,"Cox, Ruby","Special Responsibility",201809,10000058,105.83]
["CLLR","Hastings Councillor Payroll",200181,"Cox, Ruby","Special Responsibility",201810,10000062,105.83]
["CLLR","Hastings Councillor Payroll",200181,"Cox, Ruby","Special Responsibility",201811,10000069,105.83]
["CLLR","Hastings Councillor Payroll",200181,"Cox, Ruby","Special Responsibility",201812,10000080,105.83]
["CLLR","Hastings Councillor Payroll",200181,"Cox, Ruby","Special Responsibility Adj",201802,10000008,-85.35]
["CLLR","Hastings Councillor Payroll",200181,"Cox, Ruby","Special Responsibility Adj",201803,10000010,-2.08]
["CLLR","Hastings Councillor Payroll",200181,"Cox, Ruby","Special Responsibility Adj",201804,10000012,-2.08]
["CLLR","Hastings Councillor Payroll",200181,"Cox, Ruby","Special Responsibility Backpay",201803,10000010,83.67]
["CLLR","Hastings Councillor Payroll",200181,"Cox, Ruby","Special Responsibility Backpay",201805,10000027,5.82,{"$f":"SUBTOTAL(9,H252:H267)","v":1143.6300000000003}]
[]
["CLLR","Hastings Councillor Payroll",200182,"Evans, Maya","Basic Pay",201802,10000008,397.38]
["CLLR","Hastings Councillor Payroll",200182,"Evans, Maya","Basic Pay",201803,10000010,492.75]
["CLLR","Hastings Councillor Payroll",200182,"Evans, Maya","Basic Pay",201804,10000012,502.5]
["CLLR","Hastings Councillor Payroll",200182,"Evans, Maya","Basic Pay",201805,10000027,502.5]
["CLLR","Hastings Councillor Payroll",200182,"Evans, Maya","Basic Pay",201806,10000043,502.5]
["CLLR","Hastings Councillor Payroll",200182,"Evans, Maya","Basic Pay",201807,10000048,502.5]
["CLLR","Hastings Councillor Payroll",200182,"Evans, Maya","Basic Pay",201808,10000053,502.5]
["CLLR","Hastings Councillor Payroll",200182,"Evans, Maya","Basic Pay",201809,10000058,502.5]
["CLLR","Hastings Councillor Payroll",200182,"Evans, Maya","Basic Pay",201810,10000062,502.5]
["CLLR","Hastings Councillor Payroll",200182,"Evans, Maya","Basic Pay",201811,10000069,502.5]
["CLLR","Hastings Councillor Payroll",200182,"Evans, Maya","Basic Pay",201812,10000080,502.5]
["CLLR","Hastings Councillor Payroll",200182,"Evans, Maya","Basic Pay Backpay",201803,10000010,397.38]
["CLLR","Hastings Councillor Payroll",200182,"Evans, Maya","Basic Pay Backpay",201805,10000027,27.36,{"$f":"SUBTOTAL(9,H269:H281)","v":5837.37}]
[]
["CLLR","Hastings Councillor Payroll",200183,"Foster, Paul","Basic Pay",201802,10000008,397.38]
["CLLR","Hastings Councillor Payroll",200183,"Foster, Paul","Basic Pay",201803,10000010,492.75]
["CLLR","Hastings Councillor Payroll",200183,"Foster, Paul","Basic Pay",201804,10000012,502.5]
["CLLR","Hastings Councillor Payroll",200183,"Foster, Paul","Basic Pay",201805,10000027,502.5]
["CLLR","Hastings Councillor Payroll",200183,"Foster, Paul","Basic Pay",201806,10000043,502.5]
["CLLR","Hastings Councillor Payroll",200183,"Foster, Paul","Basic Pay",201807,10000048,502.5]
["CLLR","Hastings Councillor Payroll",200183,"Foster, Paul","Basic Pay",201808,10000053,502.5]
["CLLR","Hastings Councillor Payroll",200183,"Foster, Paul","Basic Pay",201809,10000058,502.5]
["CLLR","Hastings Councillor Payroll",200183,"Foster, Paul","Basic Pay",201810,10000062,502.5]
["CLLR","Hastings Councillor Payroll",200183,"Foster, Paul","Basic Pay",201811,10000069,502.5]
["CLLR","Hastings Councillor Payroll",200183,"Foster, Paul","Basic Pay",201812,10000080,502.5]
["CLLR","Hastings Councillor Payroll",200183,"Foster, Paul","Basic Pay Backpay",201803,10000010,397.38]
["CLLR","Hastings Councillor Payroll",200183,"Foster, Paul","Basic Pay Backpay",201805,10000027,27.36,{"$f":"SUBTOTAL(9,H283:H295)","v":5837.37}]
[]
["CLLR","Hastings Councillor Payroll",200184,"Charman, Tania","Basic Pay",201801,10000000,492.75]
["CLLR","Hastings Councillor Payroll",200184,"Charman, Tania","Basic Pay",201802,10000008,492.75]
["CLLR","Hastings Councillor Payroll",200184,"Charman, Tania","Basic Pay",201803,10000010,492.75]
["CLLR","Hastings Councillor Payroll",200184,"Charman, Tania","Basic Pay",201804,10000012,502.5]
["CLLR","Hastings Councillor Payroll",200184,"Charman, Tania","Basic Pay",201805,10000027,502.5]
["CLLR","Hastings Councillor Payroll",200184,"Charman, Tania","Basic Pay",201806,10000043,502.5]
["CLLR","Hastings Councillor Payroll",200184,"Charman, Tania","Basic Pay",201807,10000048,502.5]
["CLLR","Hastings Councillor Payroll",200184,"Charman, Tania","Basic Pay",201808,10000053,502.5]
["CLLR","Hastings Councillor Payroll",200184,"Charman, Tania","Basic Pay",201809,10000058,502.5]
["CLLR","Hastings Councillor Payroll",200184,"Charman, Tania","Basic Pay",201810,10000062,502.5]
["CLLR","Hastings Councillor Payroll",200184,"Charman, Tania","Basic Pay",201811,10000069,502.5]
["CLLR","Hastings Councillor Payroll",200184,"Charman, Tania","Basic Pay",201812,10000080,502.5]
["CLLR","Hastings Councillor Payroll",200184,"Charman, Tania","Basic Pay",201907,10000135,512.5]
["CLLR","Hastings Councillor Payroll",200184,"Charman, Tania","Basic Pay Backpay",201805,10000027,39,{"$f":"SUBTOTAL(9,H297:H310)","v":6039.75}]
[]
["CLLR","Hastings Councillor Payroll",200185,"Levane, Leah","Basic Pay",201803,10000010,492.75]
["CLLR","Hastings Councillor Payroll",200185,"Levane, Leah","Basic Pay",201804,10000012,502.5]
["CLLR","Hastings Councillor Payroll",200185,"Levane, Leah","Basic Pay",201805,10000027,502.5]
["CLLR","Hastings Councillor Payroll",200185,"Levane, Leah","Basic Pay",201806,10000043,502.5]
["CLLR","Hastings Councillor Payroll",200185,"Levane, Leah","Basic Pay",201807,10000048,502.5]
["CLLR","Hastings Councillor Payroll",200185,"Levane, Leah","Basic Pay",201808,10000053,502.5]
["CLLR","Hastings Councillor Payroll",200185,"Levane, Leah","Basic Pay",201809,10000058,502.5]
["CLLR","Hastings Councillor Payroll",200185,"Levane, Leah","Basic Pay",201810,10000062,502.5]
["CLLR","Hastings Councillor Payroll",200185,"Levane, Leah","Basic Pay",201811,10000069,502.5]
["CLLR","Hastings Councillor Payroll",200185,"Levane, Leah","Basic Pay",201812,10000080,502.5]
["CLLR","Hastings Councillor Payroll",200185,"Levane, Leah","Basic Pay Backpay",201805,10000027,27.36,{"$f":"SUBTOTAL(9,H312:H322)","v":5042.61}]
[]
["CLLR","Hastings Councillor Payroll",200185,"Levane, Leah","Special Responsibility",201902,10000089,27.51]
["CLLR","Hastings Councillor Payroll",200185,"Levane, Leah","Special Responsibility",201903,10000097,50.17]
["CLLR","Hastings Councillor Payroll",200185,"Levane, Leah","Special Responsibility",201904,10000106,50.17]
["CLLR","Hastings Councillor Payroll",200185,"Levane, Leah","Special Responsibility",201905,10000113,50.17]
["CLLR","Hastings Councillor Payroll",200185,"Levane, Leah","Special Responsibility",201906,10000122,50.17]
["CLLR","Hastings Councillor Payroll",200185,"Levane, Leah","Special Responsibility",201907,10000135,50.17]
["CLLR","Hastings Councillor Payroll",200188,"Chowney, Peter","Basic Pay",201801,10000000,492.75]
["CLLR","Hastings Councillor Payroll",200188,"Chowney, Peter","Basic Pay",201802,10000008,492.75]
["CLLR","Hastings Councillor Payroll",200188,"Chowney, Peter","Basic Pay",201803,10000010,492.75]
["CLLR","Hastings Councillor Payroll",200188,"Chowney, Peter","Basic Pay",201804,10000012,502.5]
["CLLR","Hastings Councillor Payroll",200188,"Chowney, Peter","Basic Pay",201805,10000027,502.5]
["CLLR","Hastings Councillor Payroll",200188,"Chowney, Peter","Basic Pay",201806,10000043,502.5]
["CLLR","Hastings Councillor Payroll",200188,"Chowney, Peter","Basic Pay",201807,10000048,502.5]
["CLLR","Hastings Councillor Payroll",200188,"Chowney, Peter","Basic Pay",201808,10000053,502.5]
["CLLR","Hastings Councillor Payroll",200188,"Chowney, Peter","Basic Pay",201809,10000058,502.5]
["CLLR","Hastings Councillor Payroll",200188,"Chowney, Peter","Basic Pay",201810,10000062,502.5]
["CLLR","Hastings Councillor Payroll",200188,"Chowney, Peter","Basic Pay",201811,10000069,502.5]
["CLLR","Hastings Councillor Payroll",200188,"Chowney, Peter","Basic Pay",201812,10000080,502.5]
["CLLR","Hastings Councillor Payroll",200188,"Chowney, Peter","Basic Pay Backpay",201805,10000027,39,{"$f":"SUBTOTAL(9,H330:H342)","v":6039.75}]
[]
["CLLR","Hastings Councillor Payroll",200188,"Chowney, Peter","Private Car Mileage",201803,10000010,116.1]
["CLLR","Hastings Councillor Payroll",200188,"Chowney, Peter","Private Car Mileage",201805,10000027,207]
["CLLR","Hastings Councillor Payroll",200188,"Chowney, Peter","Private Car Mileage",201808,10000053,208.8]
["CLLR","Hastings Councillor Payroll",200188,"Chowney, Peter","Private Car Mileage",201811,10000069,139.05,{"$f":"SUBTOTAL(9,H344:H347)","v":670.95}]
[]
["CLLR","Hastings Councillor Payroll",200188,"Chowney, Peter","Special Responsibility",201801,10000000,1415.25]
["CLLR","Hastings Councillor Payroll",200188,"Chowney, Peter","Special Responsibility",201802,10000008,1450.2]
["CLLR","Hastings Councillor Payroll",200188,"Chowney, Peter","Special Responsibility",201803,10000010,1458.58]
["CLLR","Hastings Councillor Payroll",200188,"Chowney, Peter","Special Responsibility",201804,10000012,1458.58]
["CLLR","Hastings Councillor Payroll",200188,"Chowney, Peter","Special Responsibility",201805,10000027,1458.58]
["CLLR","Hastings Councillor Payroll",200188,"Chowney, Peter","Special Responsibility",201806,10000043,1458.58]
["CLLR","Hastings Councillor Payroll",200188,"Chowney, Peter","Special Responsibility",201807,10000048,1458.58]
["CLLR","Hastings Councillor Payroll",200188,"Chowney, Peter","Special Responsibility",201808,10000053,1458.58]
["CLLR","Hastings Councillor Payroll",200188,"Chowney, Peter","Special Responsibility",201809,10000058,1458.58]
["CLLR","Hastings Councillor Payroll",200188,"Chowney, Peter","Special Responsibility",201810,10000062,1458.58]
["CLLR","Hastings Councillor Payroll",200188,"Chowney, Peter","Special Responsibility",201811,10000069,1458.58]
["CLLR","Hastings Councillor Payroll",200188,"Chowney, Peter","Special Responsibility",201812,10000080,1458.58]
["CLLR","Hastings Councillor Payroll",200188,"Chowney, Peter","Special Responsibility Adj",201802,10000008,-34.95]
["CLLR","Hastings Councillor Payroll",200188,"Chowney, Peter","Special Responsibility Adj",201803,10000010,-28.58]
["CLLR","Hastings Councillor Payroll",200188,"Chowney, Peter","Special Responsibility Adj",201804,10000012,-28.58]
["CLLR","Hastings Councillor Payroll",200188,"Chowney, Peter","Special Responsibility Backpay",201803,10000010,11.9]
["CLLR","Hastings Councillor Payroll",200188,"Chowney, Peter","Special Responsibility Backpay",201805,10000027,114.04,{"$f":"SUBTOTAL(9,H349:H365)","v":17485.079999999998}]
[]
["CLLR","Hastings Councillor Payroll",200191,"Clark, Lee","Basic Pay",201801,10000000,492.75]
["CLLR","Hastings Councillor Payroll",200191,"Clark, Lee","Basic Pay",201802,10000008,95.37,{"$f":"SUBTOTAL(9,H367:H368)","v":588.12}]
[]
["CLLR","Hastings Councillor Payroll",200193,"Louise, Dany","Basic Pay",201802,10000008,397.38]
["CLLR","Hastings Councillor Payroll",200193,"Louise, Dany","Basic Pay",201803,10000010,492.75]
["CLLR","Hastings Councillor Payroll",200193,"Louise, Dany","Basic Pay",201804,10000012,502.5]
["CLLR","Hastings Councillor Payroll",200193,"Louise, Dany","Basic Pay",201805,10000027,502.5]
["CLLR","Hastings Councillor Payroll",200193,"Louise, Dany","Basic Pay",201806,10000043,502.5]
["CLLR","Hastings Councillor Payroll",200193,"Louise, Dany","Basic Pay",201807,10000048,502.5]
["CLLR","Hastings Councillor Payroll",200193,"Louise, Dany","Basic Pay",201808,10000053,502.5]
["CLLR","Hastings Councillor Payroll",200193,"Louise, Dany","Basic Pay",201809,10000058,502.5]
["CLLR","Hastings Councillor Payroll",200193,"Louise, Dany","Basic Pay",201810,10000062,502.5]
["CLLR","Hastings Councillor Payroll",200193,"Louise, Dany","Basic Pay",201811,10000069,502.5]
["CLLR","Hastings Councillor Payroll",200193,"Louise, Dany","Basic Pay",201812,10000080,502.5]
["CLLR","Hastings Councillor Payroll",200193,"Louise, Dany","Basic Pay Backpay",201803,10000010,397.38]
["CLLR","Hastings Councillor Payroll",200193,"Louise, Dany","Basic Pay Backpay",201805,10000027,27.36,{"$f":"SUBTOTAL(9,H370:H382)","v":5837.37}]
[]
["CLLR","Hastings Councillor Payroll",200194,"Clarke, Martin","Basic Pay",201801,10000000,492.75]
["CLLR","Hastings Councillor Payroll",200194,"Clarke, Martin","Basic Pay",201802,10000008,95.37,{"$f":"SUBTOTAL(9,H384:H385)","v":588.12}]
[]
["CLLR","Hastings Councillor Payroll",200194,"Clarke, Martin","Special Responsibility",201801,10000000,80.25]
["CLLR","Hastings Councillor Payroll",200194,"Clarke, Martin","Special Responsibility",201802,10000008,15.53,{"$f":"SUBTOTAL(9,H387:H388)","v":95.78}]
[]
["CLLR","Hastings Councillor Payroll",200199,"Marlow-Eastwood, Sorrell","Basic Pay",201803,10000010,492.75]
["CLLR","Hastings Councillor Payroll",200199,"Marlow-Eastwood, Sorrell","Basic Pay",201804,10000012,502.5]
["CLLR","Hastings Councillor Payroll",200199,"Marlow-Eastwood, Sorrell","Basic Pay",201805,10000027,502.5]
["CLLR","Hastings Councillor Payroll",200199,"Marlow-Eastwood, Sorrell","Basic Pay",201806,10000043,502.5]
["CLLR","Hastings Councillor Payroll",200199,"Marlow-Eastwood, Sorrell","Basic Pay",201807,10000048,502.5]
["CLLR","Hastings Councillor Payroll",200199,"Marlow-Eastwood, Sorrell","Basic Pay",201808,10000053,502.5]
["CLLR","Hastings Councillor Payroll",200199,"Marlow-Eastwood, Sorrell","Basic Pay",201809,10000058,502.5]
["CLLR","Hastings Councillor Payroll",200199,"Marlow-Eastwood, Sorrell","Basic Pay",201810,10000062,502.5]
["CLLR","Hastings Councillor Payroll",200199,"Marlow-Eastwood, Sorrell","Basic Pay",201811,10000069,502.5]
["CLLR","Hastings Councillor Payroll",200199,"Marlow-Eastwood, Sorrell","Basic Pay",201812,10000080,502.5]
["CLLR","Hastings Councillor Payroll",200199,"Marlow-Eastwood, Sorrell","Basic Pay Backpay",201803,10000010,397.38]
["CLLR","Hastings Councillor Payroll",200199,"Marlow-Eastwood, Sorrell","Basic Pay Backpay",201805,10000027,27.66,{"$f":"SUBTOTAL(9,H390:H401)","v":5440.29}]
[]
["CLLR","Hastings Councillor Payroll",200199,"Marlow-Eastwood, Sorrell","Special Responsibility",201802,10000008,85.35]
["CLLR","Hastings Councillor Payroll",200199,"Marlow-Eastwood, Sorrell","Special Responsibility",201803,10000010,105.83]
["CLLR","Hastings Councillor Payroll",200199,"Marlow-Eastwood, Sorrell","Special Responsibility",201804,10000012,105.83]
["CLLR","Hastings Councillor Payroll",200199,"Marlow-Eastwood, Sorrell","Special Responsibility",201805,10000027,107.92]
["CLLR","Hastings Councillor Payroll",200199,"Marlow-Eastwood, Sorrell","Special Responsibility",201806,10000043,107.92]
["CLLR","Hastings Councillor Payroll",200199,"Marlow-Eastwood, Sorrell","Special Responsibility",201807,10000048,107.92]
["CLLR","Hastings Councillor Payroll",200199,"Marlow-Eastwood, Sorrell","Special Responsibility",201808,10000053,107.92]
["CLLR","Hastings Councillor Payroll",200199,"Marlow-Eastwood, Sorrell","Special Responsibility",201809,10000058,107.92]
["CLLR","Hastings Councillor Payroll",200199,"Marlow-Eastwood, Sorrell","Special Responsibility",201810,10000062,107.92]
["CLLR","Hastings Councillor Payroll",200199,"Marlow-Eastwood, Sorrell","Special Responsibility",201811,10000069,107.92]
["CLLR","Hastings Councillor Payroll",200199,"Marlow-Eastwood, Sorrell","Special Responsibility",201812,10000080,107.92]
["CLLR","Hastings Councillor Payroll",200199,"Marlow-Eastwood, Sorrell","Special Responsibility Adj",201802,10000008,-85.35]
["CLLR","Hastings Councillor Payroll",200199,"Marlow-Eastwood, Sorrell","Special Responsibility Adj",201803,10000010,-2.08]
["CLLR","Hastings Councillor Payroll",200199,"Marlow-Eastwood, Sorrell","Special Responsibility Adj",201804,10000012,-2.08]
["CLLR","Hastings Councillor Payroll",200199,"Marlow-Eastwood, Sorrell","Special Responsibility Adj",201903,10000097,-4.32]
["CLLR","Hastings Councillor Payroll",200199,"Marlow-Eastwood, Sorrell","Special Responsibility Backpay",201803,10000010,83.67]
["CLLR","Hastings Councillor Payroll",200199,"Marlow-Eastwood, Sorrell","Special Responsibility Backpay",201805,10000027,5.83,{"$f":"SUBTOTAL(9,H403:H419)","v":1160.3600000000001}]
[]
["CLLR","Hastings Councillor Payroll",200225,"Cooke, Robert","Basic Pay",201801,10000000,492.75]
["CLLR","Hastings Councillor Payroll",200225,"Cooke, Robert","Basic Pay",201802,10000008,95.37,{"$f":"SUBTOTAL(9,H421:H422)","v":588.12}]
[]
["CLLR","Hastings Councillor Payroll",200225,"Cooke, Robert","Special Responsibility",201801,10000000,23]
["CLLR","Hastings Councillor Payroll",200225,"Cooke, Robert","Special Responsibility",201802,10000008,4.45]
["CLLR","Hastings Councillor Payroll",200225,"Cooke, Robert","Special Responsibility Adj",201801,10000000,0.5]
["CLLR","Hastings Councillor Payroll",200225,"Cooke, Robert","Special Responsibility Adj",201802,10000008,0.1,{"$f":"SUBTOTAL(9,H424:H427)","v":28.05}]
[]
["CLLR","Hastings Councillor Payroll",200287,"Davies, Warren","Basic Pay",201802,10000008,492.75]
["CLLR","Hastings Councillor Payroll",200287,"Davies, Warren","Basic Pay",201803,10000010,492.75]
["CLLR","Hastings Councillor Payroll",200287,"Davies, Warren","Basic Pay",201804,10000012,502.5]
["CLLR","Hastings Councillor Payroll",200287,"Davies, Warren","Basic Pay",201805,10000027,502.5]
["CLLR","Hastings Councillor Payroll",200287,"Davies, Warren","Basic Pay",201806,10000043,502.5]
["CLLR","Hastings Councillor Payroll",200287,"Davies, Warren","Basic Pay",201807,10000048,502.5]
["CLLR","Hastings Councillor Payroll",200287,"Davies, Warren","Basic Pay",201808,10000053,502.5]
["CLLR","Hastings Councillor Payroll",200287,"Davies, Warren","Basic Pay",201809,10000058,502.5]
["CLLR","Hastings Councillor Payroll",200287,"Davies, Warren","Basic Pay",201810,10000062,502.5]
["CLLR","Hastings Councillor Payroll",200287,"Davies, Warren","Basic Pay",201811,10000069,502.5]
["CLLR","Hastings Councillor Payroll",200287,"Davies, Warren","Basic Pay",201812,10000080,502.5]
["CLLR","Hastings Councillor Payroll",200287,"Davies, Warren","Basic Pay Backpay",201805,10000027,39,{"$f":"SUBTOTAL(9,H429:H440)","v":5547}]
[]
["CLLR","Hastings Councillor Payroll",200287,"Davies, Warren","Special Responsibility",201802,10000008,128.76]
["CLLR","Hastings Councillor Payroll",200287,"Davies, Warren","Special Responsibility",201803,10000010,159.67]
["CLLR","Hastings Councillor Payroll",200287,"Davies, Warren","Special Responsibility",201804,10000012,159.67]
["CLLR","Hastings Councillor Payroll",200287,"Davies, Warren","Special Responsibility",201805,10000027,159.67]
["CLLR","Hastings Councillor Payroll",200287,"Davies, Warren","Special Responsibility",201806,10000043,159.67]
["CLLR","Hastings Councillor Payroll",200287,"Davies, Warren","Special Responsibility",201807,10000048,159.67]
["CLLR","Hastings Councillor Payroll",200287,"Davies, Warren","Special Responsibility",201808,10000053,159.67]
["CLLR","Hastings Councillor Payroll",200287,"Davies, Warren","Special Responsibility",201809,10000058,159.67]
["CLLR","Hastings Councillor Payroll",200287,"Davies, Warren","Special Responsibility",201810,10000062,159.67]
["CLLR","Hastings Councillor Payroll",200287,"Davies, Warren","Special Responsibility",201811,10000069,159.67]
["CLLR","Hastings Councillor Payroll",200287,"Davies, Warren","Special Responsibility",201812,10000080,159.67]
["CLLR","Hastings Councillor Payroll",200287,"Davies, Warren","Special Responsibility Adj",201802,10000008,-128.76]
["CLLR","Hastings Councillor Payroll",200287,"Davies, Warren","Special Responsibility Adj",201803,10000010,-3.17]
["CLLR","Hastings Councillor Payroll",200287,"Davies, Warren","Special Responsibility Adj",201804,10000012,-3.17]
["CLLR","Hastings Councillor Payroll",200287,"Davies, Warren","Special Responsibility Backpay",201803,10000010,126.21]
["CLLR","Hastings Councillor Payroll",200287,"Davies, Warren","Special Responsibility Backpay",201805,10000027,8.79,{"$f":"SUBTOTAL(9,H442:H457)","v":1725.36}]
[]
["CLLR","Hastings Councillor Payroll",200319,"Dowling, Bruce","Basic Pay",201801,10000000,492.75]
["CLLR","Hastings Councillor Payroll",200319,"Dowling, Bruce","Basic Pay",201802,10000008,95.37,{"$f":"SUBTOTAL(9,H459:H460)","v":588.12}]
[]
["CLLR","Hastings Councillor Payroll",200319,"Dowling, Bruce","Special Responsibility",201801,10000000,127.25]
["CLLR","Hastings Councillor Payroll",200319,"Dowling, Bruce","Special Responsibility",201802,10000008,24.63,{"$f":"SUBTOTAL(9,H462:H463)","v":151.88}]
[]
["CLLR","Hastings Councillor Payroll",200321,"Dowling, Terri","Basic Pay",201801,10000000,492.75]
["CLLR","Hastings Councillor Payroll",200321,"Dowling, Terri","Basic Pay",201802,10000008,95.37,{"$f":"SUBTOTAL(9,H465:H466)","v":588.12}]
[]
["CLLR","Hastings Councillor Payroll",200345,"Edwards, Michael","Basic Pay",201801,10000000,492.75]
["CLLR","Hastings Councillor Payroll",200345,"Edwards, Michael","Basic Pay",201802,10000008,492.75]
["CLLR","Hastings Councillor Payroll",200345,"Edwards, Michael","Basic Pay",201803,10000010,492.75]
["CLLR","Hastings Councillor Payroll",200345,"Edwards, Michael","Basic Pay",201804,10000012,502.5]
["CLLR","Hastings Councillor Payroll",200345,"Edwards, Michael","Basic Pay",201805,10000027,502.5]
["CLLR","Hastings Councillor Payroll",200345,"Edwards, Michael","Basic Pay",201806,10000043,502.5]
["CLLR","Hastings Councillor Payroll",200345,"Edwards, Michael","Basic Pay",201807,10000048,502.5]
["CLLR","Hastings Councillor Payroll",200345,"Edwards, Michael","Basic Pay",201808,10000053,502.5]
["CLLR","Hastings Councillor Payroll",200345,"Edwards, Michael","Basic Pay",201809,10000058,502.5]
["CLLR","Hastings Councillor Payroll",200345,"Edwards, Michael","Basic Pay",201810,10000062,502.5]
["CLLR","Hastings Councillor Payroll",200345,"Edwards, Michael","Basic Pay",201811,10000069,502.5]
["CLLR","Hastings Councillor Payroll",200345,"Edwards, Michael","Basic Pay",201812,10000080,502.5]
["CLLR","Hastings Councillor Payroll",200345,"Edwards, Michael","Basic Pay Backpay",201805,10000027,39,{"$f":"SUBTOTAL(9,H468:H480)","v":6039.75}]
[]
["CLLR","Hastings Councillor Payroll",200345,"Edwards, Michael","Special Responsibility",201801,10000000,80.25]
["CLLR","Hastings Councillor Payroll",200345,"Edwards, Michael","Special Responsibility",201802,10000008,80.25]
["CLLR","Hastings Councillor Payroll",200345,"Edwards, Michael","Special Responsibility",201803,10000010,80.25]
["CLLR","Hastings Councillor Payroll",200345,"Edwards, Michael","Special Responsibility",201804,10000012,80.25]
["CLLR","Hastings Councillor Payroll",200345,"Edwards, Michael","Special Responsibility",201805,10000027,81.83]
["CLLR","Hastings Councillor Payroll",200345,"Edwards, Michael","Special Responsibility",201806,10000043,81.83]
["CLLR","Hastings Councillor Payroll",200345,"Edwards, Michael","Special Responsibility",201807,10000048,81.83]
["CLLR","Hastings Councillor Payroll",200345,"Edwards, Michael","Special Responsibility",201808,10000053,81.83]
["CLLR","Hastings Councillor Payroll",200345,"Edwards, Michael","Special Responsibility",201809,10000058,81.83]
["CLLR","Hastings Councillor Payroll",200345,"Edwards, Michael","Special Responsibility",201810,10000062,81.83]
["CLLR","Hastings Councillor Payroll",200345,"Edwards, Michael","Special Responsibility",201811,10000069,81.83]
["CLLR","Hastings Councillor Payroll",200345,"Edwards, Michael","Special Responsibility",201812,10000080,81.83]
["CLLR","Hastings Councillor Payroll",200345,"Edwards, Michael","Special Responsibility Backpay",201805,10000027,10.4,{"$f":"SUBTOTAL(9,H482:H494)","v":986.0400000000002}]
[]
["CLLR","Hastings Councillor Payroll",200384,"Fitzgerald, Colin","Basic Pay",201801,10000000,492.75]
["CLLR","Hastings Councillor Payroll",200384,"Fitzgerald, Colin","Basic Pay",201802,10000008,492.75]
["CLLR","Hastings Councillor Payroll",200384,"Fitzgerald, Colin","Basic Pay",201803,10000010,492.75]
["CLLR","Hastings Councillor Payroll",200384,"Fitzgerald, Colin","Basic Pay",201804,10000012,502.5]
["CLLR","Hastings Councillor Payroll",200384,"Fitzgerald, Colin","Basic Pay",201805,10000027,502.5]
["CLLR","Hastings Councillor Payroll",200384,"Fitzgerald, Colin","Basic Pay",201806,10000043,502.5]
["CLLR","Hastings Councillor Payroll",200384,"Fitzgerald, Colin","Basic Pay",201807,10000048,502.5]
["CLLR","Hastings Councillor Payroll",200384,"Fitzgerald, Colin","Basic Pay",201808,10000053,502.5]
["CLLR","Hastings Councillor Payroll",200384,"Fitzgerald, Colin","Basic Pay",201809,10000058,502.5]
["CLLR","Hastings Councillor Payroll",200384,"Fitzgerald, Colin","Basic Pay",201810,10000062,502.5]
["CLLR","Hastings Councillor Payroll",200384,"Fitzgerald, Colin","Basic Pay",201811,10000069,502.5]
["CLLR","Hastings Councillor Payroll",200384,"Fitzgerald, Colin","Basic Pay",201812,10000080,502.5]
["CLLR","Hastings Councillor Payroll",200384,"Fitzgerald, Colin","Basic Pay Backpay",201805,10000027,39,{"$f":"SUBTOTAL(9,H496:H508)","v":6039.75}]
[]
["CLLR","Hastings Councillor Payroll",200384,"Fitzgerald, Colin","Special Responsibility",201801,10000000,532]
["CLLR","Hastings Councillor Payroll",200384,"Fitzgerald, Colin","Special Responsibility",201802,10000008,532]
["CLLR","Hastings Councillor Payroll",200384,"Fitzgerald, Colin","Special Responsibility",201803,10000010,532]
["CLLR","Hastings Councillor Payroll",200384,"Fitzgerald, Colin","Special Responsibility",201804,10000012,532]
["CLLR","Hastings Councillor Payroll",200384,"Fitzgerald, Colin","Special Responsibility",201805,10000027,542.67]
["CLLR","Hastings Councillor Payroll",200384,"Fitzgerald, Colin","Special Responsibility",201806,10000043,542.67]
["CLLR","Hastings Councillor Payroll",200384,"Fitzgerald, Colin","Special Responsibility",201807,10000048,542.67]
["CLLR","Hastings Councillor Payroll",200384,"Fitzgerald, Colin","Special Responsibility",201808,10000053,542.67]
["CLLR","Hastings Councillor Payroll",200384,"Fitzgerald, Colin","Special Responsibility",201809,10000058,542.67]
["CLLR","Hastings Councillor Payroll",200384,"Fitzgerald, Colin","Special Responsibility",201810,10000062,542.67]
["CLLR","Hastings Councillor Payroll",200384,"Fitzgerald, Colin","Special Responsibility",201811,10000069,542.67]
["CLLR","Hastings Councillor Payroll",200384,"Fitzgerald, Colin","Special Responsibility",201812,10000080,542.67]
["CLLR","Hastings Councillor Payroll",200384,"Fitzgerald, Colin","Special Responsibility Backpay",201805,10000027,42.68,{"$f":"SUBTOTAL(9,H510:H522)","v":6512.040000000001}]
[]
["CLLR","Hastings Councillor Payroll",200394,"Forward, Kim","Basic Pay",201801,10000000,492.75]
["CLLR","Hastings Councillor Payroll",200394,"Forward, Kim","Basic Pay",201802,10000008,492.75]
["CLLR","Hastings Councillor Payroll",200394,"Forward, Kim","Basic Pay",201803,10000010,492.75]
["CLLR","Hastings Councillor Payroll",200394,"Forward, Kim","Basic Pay",201804,10000012,502.5]
["CLLR","Hastings Councillor Payroll",200394,"Forward, Kim","Basic Pay",201805,10000027,502.5]
["CLLR","Hastings Councillor Payroll",200394,"Forward, Kim","Basic Pay",201806,10000043,502.5]
["CLLR","Hastings Councillor Payroll",200394,"Forward, Kim","Basic Pay",201807,10000048,502.5]
["CLLR","Hastings Councillor Payroll",200394,"Forward, Kim","Basic Pay",201808,10000053,502.5]
["CLLR","Hastings Councillor Payroll",200394,"Forward, Kim","Basic Pay",201809,10000058,502.5]
["CLLR","Hastings Councillor Payroll",200394,"Forward, Kim","Basic Pay",201810,10000062,502.5]
["CLLR","Hastings Councillor Payroll",200394,"Forward, Kim","Basic Pay",201811,10000069,502.5]
["CLLR","Hastings Councillor Payroll",200394,"Forward, Kim","Basic Pay",201812,10000080,502.5]
["CLLR","Hastings Councillor Payroll",200394,"Forward, Kim","Basic Pay Backpay",201805,10000027,39,{"$f":"SUBTOTAL(9,H524:H536)","v":6039.75}]
[]
["CLLR","Hastings Councillor Payroll",200394,"Forward, Kim","Special Responsibility",201801,10000000,965.25]
["CLLR","Hastings Councillor Payroll",200394,"Forward, Kim","Special Responsibility",201802,10000008,965.25]
["CLLR","Hastings Councillor Payroll",200394,"Forward, Kim","Special Responsibility",201803,10000010,965.25]
["CLLR","Hastings Councillor Payroll",200394,"Forward, Kim","Special Responsibility",201804,10000012,965.25]
["CLLR","Hastings Councillor Payroll",200394,"Forward, Kim","Special Responsibility",201805,10000027,999.58]
["CLLR","Hastings Councillor Payroll",200394,"Forward, Kim","Special Responsibility",201806,10000043,999.58]
["CLLR","Hastings Councillor Payroll",200394,"Forward, Kim","Special Responsibility",201807,10000048,999.58]
["CLLR","Hastings Councillor Payroll",200394,"Forward, Kim","Special Responsibility",201808,10000053,999.58]
["CLLR","Hastings Councillor Payroll",200394,"Forward, Kim","Special Responsibility",201809,10000058,999.58]
["CLLR","Hastings Councillor Payroll",200394,"Forward, Kim","Special Responsibility",201810,10000062,999.58]
["CLLR","Hastings Councillor Payroll",200394,"Forward, Kim","Special Responsibility",201811,10000069,999.58]
["CLLR","Hastings Councillor Payroll",200394,"Forward, Kim","Special Responsibility",201812,10000080,999.58]
["CLLR","Hastings Councillor Payroll",200394,"Forward, Kim","Special Responsibility Adj",201803,10000010,14.75]
["CLLR","Hastings Councillor Payroll",200394,"Forward, Kim","Special Responsibility Adj",201804,10000012,14.75]
["CLLR","Hastings Councillor Payroll",200394,"Forward, Kim","Special Responsibility Backpay",201803,10000010,11.89]
["CLLR","Hastings Councillor Payroll",200394,"Forward, Kim","Special Responsibility Backpay",201805,10000027,78.05,{"$f":"SUBTOTAL(9,H538:H553)","v":11977.079999999998}]
[]
["CLLR","Hastings Councillor Payroll",200583,"Howard, Michael","Basic Pay",201801,10000000,492.75]
["CLLR","Hastings Councillor Payroll",200583,"Howard, Michael","Basic Pay",201802,10000008,95.37,{"$f":"SUBTOTAL(9,H555:H556)","v":588.12}]
[]
["CLLR","Hastings Councillor Payroll",200583,"Howard, Michael","Special Responsibility",201801,10000000,48.25]
["CLLR","Hastings Councillor Payroll",200583,"Howard, Michael","Special Responsibility",201802,10000008,9.34,{"$f":"SUBTOTAL(9,H558:H559)","v":57.59}]
[]
["CLLR","Hastings Councillor Payroll",200661,"Lee, Rob","Basic Pay",201801,10000000,492.75]
["CLLR","Hastings Councillor Payroll",200661,"Lee, Rob","Basic Pay",201802,10000008,492.75]
["CLLR","Hastings Councillor Payroll",200661,"Lee, Rob","Basic Pay",201803,10000010,492.75]
["CLLR","Hastings Councillor Payroll",200661,"Lee, Rob","Basic Pay",201804,10000012,502.5]
["CLLR","Hastings Councillor Payroll",200661,"Lee, Rob","Basic Pay",201805,10000027,502.5]
["CLLR","Hastings Councillor Payroll",200661,"Lee, Rob","Basic Pay",201806,10000043,502.5]
["CLLR","Hastings Councillor Payroll",200661,"Lee, Rob","Basic Pay",201807,10000048,502.5]
["CLLR","Hastings Councillor Payroll",200661,"Lee, Rob","Basic Pay",201808,10000053,502.5]
["CLLR","Hastings Councillor Payroll",200661,"Lee, Rob","Basic Pay",201809,10000058,502.5]
["CLLR","Hastings Councillor Payroll",200661,"Lee, Rob","Basic Pay",201810,10000062,502.5]
["CLLR","Hastings Councillor Payroll",200661,"Lee, Rob","Basic Pay",201811,10000069,502.5]
["CLLR","Hastings Councillor Payroll",200661,"Lee, Rob","Basic Pay",201812,10000080,502.5]
["CLLR","Hastings Councillor Payroll",200661,"Lee, Rob","Basic Pay",201901,10000084,512.5]
["CLLR","Hastings Councillor Payroll",200661,"Lee, Rob","Basic Pay",201902,10000089,512.5]
["CLLR","Hastings Councillor Payroll",200661,"Lee, Rob","Basic Pay",201903,10000097,512.5]
["CLLR","Hastings Councillor Payroll",200661,"Lee, Rob","Basic Pay",201904,10000106,512.5]
["CLLR","Hastings Councillor Payroll",200661,"Lee, Rob","Basic Pay",201905,10000113,512.5]
["CLLR","Hastings Councillor Payroll",200661,"Lee, Rob","Basic Pay",201906,10000122,512.5]
["CLLR","Hastings Councillor Payroll",200661,"Lee, Rob","Basic Pay",201907,10000135,512.5]
["CLLR","Hastings Councillor Payroll",200661,"Lee, Rob","Basic Pay Backpay",201805,10000027,39,{"$f":"SUBTOTAL(9,H561:H580)","v":6039.75}]
[]
["CLLR","Hastings Councillor Payroll",200661,"Lee, Rob","Special Responsibility",201801,10000000,474.5]
["CLLR","Hastings Councillor Payroll",200661,"Lee, Rob","Special Responsibility",201802,10000008,474.5]
["CLLR","Hastings Councillor Payroll",200661,"Lee, Rob","Special Responsibility",201803,10000010,474.5]
["CLLR","Hastings Councillor Payroll",200661,"Lee, Rob","Special Responsibility",201804,10000012,474.5]
["CLLR","Hastings Councillor Payroll",200661,"Lee, Rob","Special Responsibility",201805,10000027,484]
["CLLR","Hastings Councillor Payroll",200661,"Lee, Rob","Special Responsibility",201806,10000043,484]
["CLLR","Hastings Councillor Payroll",200661,"Lee, Rob","Special Responsibility",201807,10000048,484]
["CLLR","Hastings Councillor Payroll",200661,"Lee, Rob","Special Responsibility",201808,10000053,484]
["CLLR","Hastings Councillor Payroll",200661,"Lee, Rob","Special Responsibility",201809,10000058,484]
["CLLR","Hastings Councillor Payroll",200661,"Lee, Rob","Special Responsibility",201810,10000062,484]
["CLLR","Hastings Councillor Payroll",200661,"Lee, Rob","Special Responsibility",201811,10000069,484]
["CLLR","Hastings Councillor Payroll",200661,"Lee, Rob","Special Responsibility",201812,10000080,484]
["CLLR","Hastings Councillor Payroll",200661,"Lee, Rob","Special Responsibility",201901,10000084,493.67]
["CLLR","Hastings Councillor Payroll",200661,"Lee, Rob","Special Responsibility",201902,10000089,493.67]
["CLLR","Hastings Councillor Payroll",200661,"Lee, Rob","Special Responsibility",201903,10000097,493.67]
["CLLR","Hastings Councillor Payroll",200661,"Lee, Rob","Special Responsibility",201904,10000106,493.67]
["CLLR","Hastings Councillor Payroll",200661,"Lee, Rob","Special Responsibility",201905,10000113,493.67]
["CLLR","Hastings Councillor Payroll",200661,"Lee, Rob","Special Responsibility",201906,10000122,493.67]
["CLLR","Hastings Councillor Payroll",200661,"Lee, Rob","Special Responsibility",201907,10000135,493.67]
["CLLR","Hastings Councillor Payroll",200661,"Lee, Rob","Special Responsibility Adj",201805,10000027,104.04]
["CLLR","Hastings Councillor Payroll",200661,"Lee, Rob","Special Responsibility Adj",201806,10000043,104.04]
["CLLR","Hastings Councillor Payroll",200661,"Lee, Rob","Special Responsibility Backpay",201805,10000027,40.04,{"$f":"SUBTOTAL(9,H582:H603)","v":6018.12}]
[]
["CLLR","Hastings Councillor Payroll",200804,"CO-OPTED MEMBER","Special Responsibility Adj",201812,10000080,70.38,70.38]
[]
["CLLR","Hastings Councillor Payroll",200824,"Patmore, Andy","Basic Pay",201801,10000000,492.75]
["CLLR","Hastings Councillor Payroll",200824,"Patmore, Andy","Basic Pay",201802,10000008,492.75]
["CLLR","Hastings Councillor Payroll",200824,"Patmore, Andy","Basic Pay",201803,10000010,492.75]
["CLLR","Hastings Councillor Payroll",200824,"Patmore, Andy","Basic Pay",201804,10000012,502.5]
["CLLR","Hastings Councillor Payroll",200824,"Patmore, Andy","Basic Pay",201805,10000027,502.5]
["CLLR","Hastings Councillor Payroll",200824,"Patmore, Andy","Basic Pay",201806,10000043,502.5]
["CLLR","Hastings Councillor Payroll",200824,"Patmore, Andy","Basic Pay",201807,10000048,502.5]
["CLLR","Hastings Councillor Payroll",200824,"Patmore, Andy","Basic Pay",201808,10000053,502.5]
["CLLR","Hastings Councillor Payroll",200824,"Patmore, Andy","Basic Pay",201809,10000058,502.5]
["CLLR","Hastings Councillor Payroll",200824,"Patmore, Andy","Basic Pay",201810,10000062,502.5]
["CLLR","Hastings Councillor Payroll",200824,"Patmore, Andy","Basic Pay",201811,10000069,502.5]
["CLLR","Hastings Councillor Payroll",200824,"Patmore, Andy","Basic Pay",201812,10000080,502.5]
["CLLR","Hastings Councillor Payroll",200824,"Patmore, Andy","Basic Pay",201901,10000084,512.5]
["CLLR","Hastings Councillor Payroll",200824,"Patmore, Andy","Basic Pay",201902,10000089,512.5]
["CLLR","Hastings Councillor Payroll",200824,"Patmore, Andy","Basic Pay",201903,10000097,512.5]
["CLLR","Hastings Councillor Payroll",200824,"Patmore, Andy","Basic Pay",201904,10000106,512.5]
["CLLR","Hastings Councillor Payroll",200824,"Patmore, Andy","Basic Pay",201905,10000113,512.5]
["CLLR","Hastings Councillor Payroll",200824,"Patmore, Andy","Basic Pay",201906,10000122,512.5]
["CLLR","Hastings Councillor Payroll",200824,"Patmore, Andy","Basic Pay",201907,10000135,512.5]
["CLLR","Hastings Councillor Payroll",200824,"Patmore, Andy","Basic Pay Backpay",201805,10000027,39,{"$f":"SUBTOTAL(9,H607:H626)","v":6039.75}]
[]
["CLLR","Hastings Councillor Payroll",200824,"Patmore, Andy","Special Responsibility",201801,10000000,369]
["CLLR","Hastings Councillor Payroll",200824,"Patmore, Andy","Special Responsibility",201802,10000008,369]
["CLLR","Hastings Councillor Payroll",200824,"Patmore, Andy","Special Responsibility",201803,10000010,369]
["CLLR","Hastings Councillor Payroll",200824,"Patmore, Andy","Special Responsibility",201804,10000012,369]
["CLLR","Hastings Councillor Payroll",200824,"Patmore, Andy","Special Responsibility",201805,10000027,376.42]
["CLLR","Hastings Councillor Payroll",200824,"Patmore, Andy","Special Responsibility",201806,10000043,376.42]
["CLLR","Hastings Councillor Payroll",200824,"Patmore, Andy","Special Responsibility",201807,10000048,376.42]
["CLLR","Hastings Councillor Payroll",200824,"Patmore, Andy","Special Responsibility",201808,10000053,376.42]
["CLLR","Hastings Councillor Payroll",200824,"Patmore, Andy","Special Responsibility",201809,10000058,376.42]
["CLLR","Hastings Councillor Payroll",200824,"Patmore, Andy","Special Responsibility",201810,10000062,376.42]
["CLLR","Hastings Councillor Payroll",200824,"Patmore, Andy","Special Responsibility",201811,10000069,376.42]
["CLLR","Hastings Councillor Payroll",200824,"Patmore, Andy","Special Responsibility",201812,10000080,376.42]
["CLLR","Hastings Councillor Payroll",200824,"Patmore, Andy","Special Responsibility",201901,10000084,383.92]
["CLLR","Hastings Councillor Payroll",200824,"Patmore, Andy","Special Responsibility",201902,10000089,383.92]
["CLLR","Hastings Councillor Payroll",200824,"Patmore, Andy","Special Responsibility",201903,10000097,383.92]
["CLLR","Hastings Councillor Payroll",200824,"Patmore, Andy","Special Responsibility",201904,10000106,383.92]
["CLLR","Hastings Councillor Payroll",200824,"Patmore, Andy","Special Responsibility",201905,10000113,383.92]
["CLLR","Hastings Councillor Payroll",200824,"Patmore, Andy","Special Responsibility",201906,10000122,383.92]
["CLLR","Hastings Councillor Payroll",200824,"Patmore, Andy","Special Responsibility",201907,10000135,383.92]
["CLLR","Hastings Councillor Payroll",200824,"Patmore, Andy","Special Responsibility Adj",201805,10000027,104.04]
["CLLR","Hastings Councillor Payroll",200824,"Patmore, Andy","Special Responsibility Adj",201806,10000043,104.04]
["CLLR","Hastings Councillor Payroll",200824,"Patmore, Andy","Special Responsibility Adj",201807,10000048,104.04]
["CLLR","Hastings Councillor Payroll",200824,"Patmore, Andy","Special Responsibility Backpay",201805,10000027,31.72,{"$f":"SUBTOTAL(9,H628:H650)","v":4831.200000000001}]
[]
["CLLR","Hastings Councillor Payroll",200827,"CO-OPTED MEMBER","Special Responsibility Adj",201812,10000080,70.38,70.38]
[]
["CLLR","Hastings Councillor Payroll",200854,"Poole, Dawn","Basic Pay",201801,10000000,492.75]
["CLLR","Hastings Councillor Payroll",200854,"Poole, Dawn","Basic Pay",201802,10000008,95.37,{"$f":"SUBTOTAL(9,H654:H655)","v":588.12}]
[]
["CLLR","Hastings Councillor Payroll",200854,"Poole, Dawn","Special Responsibility",201801,10000000,532]
["CLLR","Hastings Councillor Payroll",200854,"Poole, Dawn","Special Responsibility",201802,10000008,102.97,{"$f":"SUBTOTAL(9,H657:H658)","v":634.97}]
[]
["CLLR","Hastings Councillor Payroll",200867,"CO-OPTED MEMBER","Special Responsibility Adj",201812,10000080,70.38,70.38]
[]
["CLLR","Hastings Councillor Payroll",200870,"Rankin, John","Basic Pay",201801,10000000,492.75]
["CLLR","Hastings Councillor Payroll",200870,"Rankin, John","Basic Pay",201802,10000008,492.75]
["CLLR","Hastings Councillor Payroll",200870,"Rankin, John","Basic Pay",201803,10000010,492.75]
["CLLR","Hastings Councillor Payroll",200870,"Rankin, John","Basic Pay",201804,10000012,502.5]
["CLLR","Hastings Councillor Payroll",200870,"Rankin, John","Basic Pay",201805,10000027,502.5]
["CLLR","Hastings Councillor Payroll",200870,"Rankin, John","Basic Pay",201806,10000043,502.5]
["CLLR","Hastings Councillor Payroll",200870,"Rankin, John","Basic Pay",201807,10000048,502.5]
["CLLR","Hastings Councillor Payroll",200870,"Rankin, John","Basic Pay",201808,10000053,502.5]
["CLLR","Hastings Councillor Payroll",200870,"Rankin, John","Basic Pay",201809,10000058,502.5]
["CLLR","Hastings Councillor Payroll",200870,"Rankin, John","Basic Pay",201810,10000062,502.5]
["CLLR","Hastings Councillor Payroll",200870,"Rankin, John","Basic Pay",201811,10000069,502.5]
["CLLR","Hastings Councillor Payroll",200870,"Rankin, John","Basic Pay",201812,10000080,502.5]
["CLLR","Hastings Councillor Payroll",200870,"Rankin, John","Basic Pay",201901,10000084,512.5]
["CLLR","Hastings Councillor Payroll",200870,"Rankin, John","Basic Pay",201902,10000089,512.5]
["CLLR","Hastings Councillor Payroll",200870,"Rankin, John","Basic Pay",201903,10000097,512.5]
["CLLR","Hastings Councillor Payroll",200870,"Rankin, John","Basic Pay",201904,10000106,512.5]
["CLLR","Hastings Councillor Payroll",200870,"Rankin, John","Basic Pay",201905,10000113,512.5]
["CLLR","Hastings Councillor Payroll",200870,"Rankin, John","Basic Pay",201906,10000122,512.5]
["CLLR","Hastings Councillor Payroll",200870,"Rankin, John","Basic Pay",201907,10000135,512.5]
["CLLR","Hastings Councillor Payroll",200870,"Rankin, John","Basic Pay Backpay",201805,10000027,39,{"$f":"SUBTOTAL(9,H662:H681)","v":6039.75}]
[]
["CLLR","Hastings Councillor Payroll",200870,"Rankin, John","Special Responsibility",201801,10000000,246.5]
["CLLR","Hastings Councillor Payroll",200870,"Rankin, John","Special Responsibility",201802,10000008,246.5]
["CLLR","Hastings Councillor Payroll",200870,"Rankin, John","Special Responsibility",201803,10000010,246.5]
["CLLR","Hastings Councillor Payroll",200870,"Rankin, John","Special Responsibility",201804,10000012,246.5]
["CLLR","Hastings Councillor Payroll",200870,"Rankin, John","Special Responsibility",201805,10000027,251.42]
["CLLR","Hastings Councillor Payroll",200870,"Rankin, John","Special Responsibility",201806,10000043,251.42]
["CLLR","Hastings Councillor Payroll",200870,"Rankin, John","Special Responsibility",201807,10000048,251.42]
["CLLR","Hastings Councillor Payroll",200870,"Rankin, John","Special Responsibility",201808,10000053,251.42]
["CLLR","Hastings Councillor Payroll",200870,"Rankin, John","Special Responsibility",201809,10000058,251.42]
["CLLR","Hastings Councillor Payroll",200870,"Rankin, John","Special Responsibility",201810,10000062,251.42]
["CLLR","Hastings Councillor Payroll",200870,"Rankin, John","Special Responsibility",201811,10000069,251.42]
["CLLR","Hastings Councillor Payroll",200870,"Rankin, John","Special Responsibility",201812,10000080,251.42]
["CLLR","Hastings Councillor Payroll",200870,"Rankin, John","Special Responsibility",201901,10000084,256.42]
["CLLR","Hastings Councillor Payroll",200870,"Rankin, John","Special Responsibility",201902,10000089,256.42]
["CLLR","Hastings Councillor Payroll",200870,"Rankin, John","Special Responsibility",201903,10000097,256.42]
["CLLR","Hastings Councillor Payroll",200870,"Rankin, John","Special Responsibility",201904,10000106,256.42]
["CLLR","Hastings Councillor Payroll",200870,"Rankin, John","Special Responsibility",201905,10000113,256.42]
["CLLR","Hastings Councillor Payroll",200870,"Rankin, John","Special Responsibility",201906,10000122,256.42]
["CLLR","Hastings Councillor Payroll",200870,"Rankin, John","Special Responsibility",201907,10000135,256.42]
["CLLR","Hastings Councillor Payroll",200870,"Rankin, John","Special Responsibility Backpay",201805,10000027,19.68,{"$f":"SUBTOTAL(9,H683:H702)","v":3017.0400000000004}]
[]
["CLLR","Hastings Councillor Payroll",200895,"Roberts, Alan","Basic Pay",201801,10000000,492.75]
["CLLR","Hastings Councillor Payroll",200895,"Roberts, Alan","Basic Pay",201802,10000008,492.75]
["CLLR","Hastings Councillor Payroll",200895,"Roberts, Alan","Basic Pay",201803,10000010,492.75]
["CLLR","Hastings Councillor Payroll",200895,"Roberts, Alan","Basic Pay",201804,10000012,502.5]
["CLLR","Hastings Councillor Payroll",200895,"Roberts, Alan","Basic Pay",201805,10000027,502.5]
["CLLR","Hastings Councillor Payroll",200895,"Roberts, Alan","Basic Pay",201806,10000043,502.5]
["CLLR","Hastings Councillor Payroll",200895,"Roberts, Alan","Basic Pay",201807,10000048,502.5]
["CLLR","Hastings Councillor Payroll",200895,"Roberts, Alan","Basic Pay",201808,10000053,502.5]
["CLLR","Hastings Councillor Payroll",200895,"Roberts, Alan","Basic Pay",201809,10000058,502.5]
["CLLR","Hastings Councillor Payroll",200895,"Roberts, Alan","Basic Pay",201810,10000062,502.5]
["CLLR","Hastings Councillor Payroll",200895,"Roberts, Alan","Basic Pay",201811,10000069,502.5]
["CLLR","Hastings Councillor Payroll",200895,"Roberts, Alan","Basic Pay",201812,10000080,502.5]
["CLLR","Hastings Councillor Payroll",200895,"Roberts, Alan","Basic Pay",201901,10000084,512.5]
["CLLR","Hastings Councillor Payroll",200895,"Roberts, Alan","Basic Pay",201902,10000089,512.5]
["CLLR","Hastings Councillor Payroll",200895,"Roberts, Alan","Basic Pay",201903,10000097,512.5]
["CLLR","Hastings Councillor Payroll",200895,"Roberts, Alan","Basic Pay",201904,10000106,512.5]
["CLLR","Hastings Councillor Payroll",200895,"Roberts, Alan","Basic Pay",201905,10000113,512.5]
["CLLR","Hastings Councillor Payroll",200895,"Roberts, Alan","Basic Pay",201906,10000122,512.5]
["CLLR","Hastings Councillor Payroll",200895,"Roberts, Alan","Basic Pay",201907,10000135,512.5]
["CLLR","Hastings Councillor Payroll",200895,"Roberts, Alan","Basic Pay Backpay",201805,10000027,39,{"$f":"SUBTOTAL(9,H704:H723)","v":6039.75}]
[]
["CLLR","Hastings Councillor Payroll",200895,"Roberts, Alan","Special Responsibility",201801,10000000,103.75]
["CLLR","Hastings Councillor Payroll",200895,"Roberts, Alan","Special Responsibility",201802,10000008,282.71]
["CLLR","Hastings Councillor Payroll",200895,"Roberts, Alan","Special Responsibility",201803,10000010,325.67]
["CLLR","Hastings Councillor Payroll",200895,"Roberts, Alan","Special Responsibility",201804,10000012,325.67]
["CLLR","Hastings Councillor Payroll",200895,"Roberts, Alan","Special Responsibility",201805,10000027,325.67]
["CLLR","Hastings Councillor Payroll",200895,"Roberts, Alan","Special Responsibility",201806,10000043,325.67]
["CLLR","Hastings Councillor Payroll",200895,"Roberts, Alan","Special Responsibility",201807,10000048,325.67]
["CLLR","Hastings Councillor Payroll",200895,"Roberts, Alan","Special Responsibility",201808,10000053,325.67]
["CLLR","Hastings Councillor Payroll",200895,"Roberts, Alan","Special Responsibility",201809,10000058,325.67]
["CLLR","Hastings Councillor Payroll",200895,"Roberts, Alan","Special Responsibility",201810,10000062,325.67]
["CLLR","Hastings Councillor Payroll",200895,"Roberts, Alan","Special Responsibility",201811,10000069,325.67]
["CLLR","Hastings Councillor Payroll",200895,"Roberts, Alan","Special Responsibility",201812,10000080,325.67]
["CLLR","Hastings Councillor Payroll",200895,"Roberts, Alan","Special Responsibility",201901,10000084,332.17]
["CLLR","Hastings Councillor Payroll",200895,"Roberts, Alan","Special Responsibility",201902,10000089,332.17]
["CLLR","Hastings Councillor Payroll",200895,"Roberts, Alan","Special Responsibility",201903,10000097,332.17]
["CLLR","Hastings Councillor Payroll",200895,"Roberts, Alan","Special Responsibility",201904,10000106,332.17]
["CLLR","Hastings Councillor Payroll",200895,"Roberts, Alan","Special Responsibility",201905,10000113,332.17]
["CLLR","Hastings Councillor Payroll",200895,"Roberts, Alan","Special Responsibility",201906,10000122,332.17]
["CLLR","Hastings Councillor Payroll",200895,"Roberts, Alan","Special Responsibility",201907,10000135,332.17]
["CLLR","Hastings Councillor Payroll",200895,"Roberts, Alan","Special Responsibility Adj",201802,10000008,-178.96]
["CLLR","Hastings Councillor Payroll",200895,"Roberts, Alan","Special Responsibility Adj",201803,10000010,167.37]
["CLLR","Hastings Councillor Payroll",200895,"Roberts, Alan","Special Responsibility Adj",201804,10000012,-6.42]
["CLLR","Hastings Councillor Payroll",200895,"Roberts, Alan","Special Responsibility Adj",201805,10000027,104.04]
["CLLR","Hastings Councillor Payroll",200895,"Roberts, Alan","Special Responsibility Adj",201806,10000043,104.04]
["CLLR","Hastings Councillor Payroll",200895,"Roberts, Alan","Special Responsibility Adj",201807,10000048,104.04]
["CLLR","Hastings Councillor Payroll",200895,"Roberts, Alan","Special Responsibility Backpay",201805,10000027,24.48,{"$f":"SUBTOTAL(9,H725:H750)","v":3961.75}]
[]
["CLLR","Hastings Councillor Payroll",200901,"Rogers, Judy","Basic Pay",201801,10000000,492.75]
["CLLR","Hastings Councillor Payroll",200901,"Rogers, Judy","Basic Pay",201802,10000008,492.75]
["CLLR","Hastings Councillor Payroll",200901,"Rogers, Judy","Basic Pay",201803,10000010,492.75]
["CLLR","Hastings Councillor Payroll",200901,"Rogers, Judy","Basic Pay",201804,10000012,502.5]
["CLLR","Hastings Councillor Payroll",200901,"Rogers, Judy","Basic Pay",201805,10000027,502.5]
["CLLR","Hastings Councillor Payroll",200901,"Rogers, Judy","Basic Pay",201806,10000043,502.5]
["CLLR","Hastings Councillor Payroll",200901,"Rogers, Judy","Basic Pay",201807,10000048,502.5]
["CLLR","Hastings Councillor Payroll",200901,"Rogers, Judy","Basic Pay",201808,10000053,502.5]
["CLLR","Hastings Councillor Payroll",200901,"Rogers, Judy","Basic Pay",201809,10000058,502.5]
["CLLR","Hastings Councillor Payroll",200901,"Rogers, Judy","Basic Pay",201810,10000062,502.5]
["CLLR","Hastings Councillor Payroll",200901,"Rogers, Judy","Basic Pay",201811,10000069,502.5]
["CLLR","Hastings Councillor Payroll",200901,"Rogers, Judy","Basic Pay",201812,10000080,502.5]
["CLLR","Hastings Councillor Payroll",200901,"Rogers, Judy","Basic Pay",201901,10000084,512.5]
["CLLR","Hastings Councillor Payroll",200901,"Rogers, Judy","Basic Pay",201902,10000089,512.5]
["CLLR","Hastings Councillor Payroll",200901,"Rogers, Judy","Basic Pay",201903,10000097,512.5]
["CLLR","Hastings Councillor Payroll",200901,"Rogers, Judy","Basic Pay",201904,10000106,512.5]
["CLLR","Hastings Councillor Payroll",200901,"Rogers, Judy","Basic Pay",201905,10000113,512.5]
["CLLR","Hastings Councillor Payroll",200901,"Rogers, Judy","Basic Pay",201906,10000122,512.5]
["CLLR","Hastings Councillor Payroll",200901,"Rogers, Judy","Basic Pay",201907,10000135,512.5]
["CLLR","Hastings Councillor Payroll",200901,"Rogers, Judy","Basic Pay Backpay",201805,10000027,39,{"$f":"SUBTOTAL(9,H752:H771)","v":6039.75}]
[]
["CLLR","Hastings Councillor Payroll",200901,"Rogers, Judy","Private Car Mileage",201801,10000000,13.35,13.35]
[]
["CLLR","Hastings Councillor Payroll",200901,"Rogers, Judy","Special Responsibility",201801,10000000,103.75]
["CLLR","Hastings Councillor Payroll",200901,"Rogers, Judy","Special Responsibility",201802,10000008,449.11]
["CLLR","Hastings Councillor Payroll",200901,"Rogers, Judy","Special Responsibility",201803,10000010,532]
["CLLR","Hastings Councillor Payroll",200901,"Rogers, Judy","Special Responsibility",201804,10000012,532]
["CLLR","Hastings Councillor Payroll",200901,"Rogers, Judy","Special Responsibility",201805,10000027,542.67]
["CLLR","Hastings Councillor Payroll",200901,"Rogers, Judy","Special Responsibility",201806,10000043,542.67]
["CLLR","Hastings Councillor Payroll",200901,"Rogers, Judy","Special Responsibility",201807,10000048,542.67]
["CLLR","Hastings Councillor Payroll",200901,"Rogers, Judy","Special Responsibility",201808,10000053,542.67]
["CLLR","Hastings Councillor Payroll",200901,"Rogers, Judy","Special Responsibility",201809,10000058,542.67]
["CLLR","Hastings Councillor Payroll",200901,"Rogers, Judy","Special Responsibility",201810,10000062,542.67]
["CLLR","Hastings Councillor Payroll",200901,"Rogers, Judy","Special Responsibility",201811,10000069,542.67]
["CLLR","Hastings Councillor Payroll",200901,"Rogers, Judy","Special Responsibility",201812,10000080,542.67]
["CLLR","Hastings Councillor Payroll",200901,"Rogers, Judy","Special Responsibility",201901,10000084,553.5]
["CLLR","Hastings Councillor Payroll",200901,"Rogers, Judy","Special Responsibility",201902,10000089,553.5]
["CLLR","Hastings Councillor Payroll",200901,"Rogers, Judy","Special Responsibility",201903,10000097,553.5]
["CLLR","Hastings Councillor Payroll",200901,"Rogers, Judy","Special Responsibility",201904,10000106,553.5]
["CLLR","Hastings Councillor Payroll",200901,"Rogers, Judy","Special Responsibility",201905,10000113,553.5]
["CLLR","Hastings Councillor Payroll",200901,"Rogers, Judy","Special Responsibility",201906,10000122,553.5]
["CLLR","Hastings Councillor Payroll",200901,"Rogers, Judy","Special Responsibility",201907,10000135,553.5]
["CLLR","Hastings Councillor Payroll",200901,"Rogers, Judy","Special Responsibility Adj",201802,10000008,-345.32]
["CLLR","Hastings Councillor Payroll",200901,"Rogers, Judy","Special Responsibility Backpay",201803,10000010,345.36]
["CLLR","Hastings Councillor Payroll",200901,"Rogers, Judy","Special Responsibility Backpay",201805,10000027,32.34,{"$f":"SUBTOTAL(9,H775:H796)","v":5990.6}]
[]
["CLLR","Hastings Councillor Payroll",200918,"Sabetian, Dominic","Basic Pay",201801,10000000,492.75]
["CLLR","Hastings Councillor Payroll",200918,"Sabetian, Dominic","Basic Pay",201802,10000008,492.75]
["CLLR","Hastings Councillor Payroll",200918,"Sabetian, Dominic","Basic Pay",201803,10000010,492.75]
["CLLR","Hastings Councillor Payroll",200918,"Sabetian, Dominic","Basic Pay",201804,10000012,502.5]
["CLLR","Hastings Councillor Payroll",200918,"Sabetian, Dominic","Basic Pay",201805,10000027,502.5]
["CLLR","Hastings Councillor Payroll",200918,"Sabetian, Dominic","Basic Pay",201806,10000043,502.5]
["CLLR","Hastings Councillor Payroll",200918,"Sabetian, Dominic","Basic Pay",201807,10000048,502.5]
["CLLR","Hastings Councillor Payroll",200918,"Sabetian, Dominic","Basic Pay",201808,10000053,502.5]
["CLLR","Hastings Councillor Payroll",200918,"Sabetian, Dominic","Basic Pay",201809,10000058,502.5]
["CLLR","Hastings Councillor Payroll",200918,"Sabetian, Dominic","Basic Pay",201810,10000062,502.5]
["CLLR","Hastings Councillor Payroll",200918,"Sabetian, Dominic","Basic Pay",201811,10000069,502.5]
["CLLR","Hastings Councillor Payroll",200918,"Sabetian, Dominic","Basic Pay",201812,10000080,502.5]
["CLLR","Hastings Councillor Payroll",200918,"Sabetian, Dominic","Basic Pay",201901,10000084,512.5]
["CLLR","Hastings Councillor Payroll",200918,"Sabetian, Dominic","Basic Pay",201902,10000089,512.5]
["CLLR","Hastings Councillor Payroll",200918,"Sabetian, Dominic","Basic Pay",201903,10000097,512.5]
["CLLR","Hastings Councillor Payroll",200918,"Sabetian, Dominic","Basic Pay",201904,10000106,512.5]
["CLLR","Hastings Councillor Payroll",200918,"Sabetian, Dominic","Basic Pay",201905,10000113,512.5]
["CLLR","Hastings Councillor Payroll",200918,"Sabetian, Dominic","Basic Pay",201906,10000122,512.5]
["CLLR","Hastings Councillor Payroll",200918,"Sabetian, Dominic","Basic Pay",201907,10000135,512.5]
["CLLR","Hastings Councillor Payroll",200918,"Sabetian, Dominic","Basic Pay Backpay",201805,10000027,39,{"$f":"SUBTOTAL(9,H798:H817)","v":6039.75}]
[]
["CLLR","Hastings Councillor Payroll",200918,"Sabetian, Dominic","Special Responsibility",201801,10000000,80.25]
["CLLR","Hastings Councillor Payroll",200918,"Sabetian, Dominic","Special Responsibility",201802,10000008,80.25]
["CLLR","Hastings Councillor Payroll",200918,"Sabetian, Dominic","Special Responsibility",201803,10000010,80.25]
["CLLR","Hastings Councillor Payroll",200918,"Sabetian, Dominic","Special Responsibility",201804,10000012,80.25]
["CLLR","Hastings Councillor Payroll",200918,"Sabetian, Dominic","Special Responsibility",201805,10000027,81.83]
["CLLR","Hastings Councillor Payroll",200918,"Sabetian, Dominic","Special Responsibility",201806,10000043,81.83]
["CLLR","Hastings Councillor Payroll",200918,"Sabetian, Dominic","Special Responsibility",201807,10000048,81.83]
["CLLR","Hastings Councillor Payroll",200918,"Sabetian, Dominic","Special Responsibility",201808,10000053,81.83]
["CLLR","Hastings Councillor Payroll",200918,"Sabetian, Dominic","Special Responsibility",201809,10000058,81.83]
["CLLR","Hastings Councillor Payroll",200918,"Sabetian, Dominic","Special Responsibility",201810,10000062,81.83]
["CLLR","Hastings Councillor Payroll",200918,"Sabetian, Dominic","Special Responsibility",201811,10000069,81.83]
["CLLR","Hastings Councillor Payroll",200918,"Sabetian, Dominic","Special Responsibility",201812,10000080,81.83]
["CLLR","Hastings Councillor Payroll",200918,"Sabetian, Dominic","Special Responsibility",201901,10000084,83.5]
["CLLR","Hastings Councillor Payroll",200918,"Sabetian, Dominic","Special Responsibility",201902,10000089,83.5]
["CLLR","Hastings Councillor Payroll",200918,"Sabetian, Dominic","Special Responsibility",201903,10000097,83.5]
["CLLR","Hastings Councillor Payroll",200918,"Sabetian, Dominic","Special Responsibility",201904,10000106,83.5]
["CLLR","Hastings Councillor Payroll",200918,"Sabetian, Dominic","Special Responsibility",201905,10000113,83.5]
["CLLR","Hastings Councillor Payroll",200918,"Sabetian, Dominic","Special Responsibility",201906,10000122,83.5]
["CLLR","Hastings Councillor Payroll",200918,"Sabetian, Dominic","Special Responsibility",201907,10000135,83.5]
["CLLR","Hastings Councillor Payroll",200918,"Sabetian, Dominic","Special Responsibility Backpay",201805,10000027,6.32,{"$f":"SUBTOTAL(9,H819:H838)","v":981.9600000000003}]
[]
["CLLR","Hastings Councillor Payroll",200935,"Scott, Philip","Basic Pay",201801,10000000,492.75]
["CLLR","Hastings Councillor Payroll",200935,"Scott, Philip","Basic Pay",201802,10000008,492.75]
["CLLR","Hastings Councillor Payroll",200935,"Scott, Philip","Basic Pay",201803,10000010,492.75]
["CLLR","Hastings Councillor Payroll",200935,"Scott, Philip","Basic Pay",201804,10000012,502.5]
["CLLR","Hastings Councillor Payroll",200935,"Scott, Philip","Basic Pay",201805,10000027,502.5]
["CLLR","Hastings Councillor Payroll",200935,"Scott, Philip","Basic Pay",201806,10000043,502.5]
["CLLR","Hastings Councillor Payroll",200935,"Scott, Philip","Basic Pay",201807,10000048,502.5]
["CLLR","Hastings Councillor Payroll",200935,"Scott, Philip","Basic Pay",201808,10000053,502.5]
["CLLR","Hastings Councillor Payroll",200935,"Scott, Philip","Basic Pay",201809,10000058,502.5]
["CLLR","Hastings Councillor Payroll",200935,"Scott, Philip","Basic Pay",201810,10000062,502.5]
["CLLR","Hastings Councillor Payroll",200935,"Scott, Philip","Basic Pay",201811,10000069,502.5]
["CLLR","Hastings Councillor Payroll",200935,"Scott, Philip","Basic Pay",201812,10000080,502.5]
["CLLR","Hastings Councillor Payroll",200935,"Scott, Philip","Basic Pay",201901,10000084,512.5]
["CLLR","Hastings Councillor Payroll",200935,"Scott, Philip","Basic Pay",201902,10000089,512.5]
["CLLR","Hastings Councillor Payroll",200935,"Scott, Philip","Basic Pay",201903,10000097,512.5]
["CLLR","Hastings Councillor Payroll",200935,"Scott, Philip","Basic Pay",201904,10000106,512.5]
["CLLR","Hastings Councillor Payroll",200935,"Scott, Philip","Basic Pay",201905,10000113,512.5]
["CLLR","Hastings Councillor Payroll",200935,"Scott, Philip","Basic Pay",201906,10000122,512.5]
["CLLR","Hastings Councillor Payroll",200935,"Scott, Philip","Basic Pay",201907,10000135,512.5]
["CLLR","Hastings Councillor Payroll",200935,"Scott, Philip","Basic Pay Backpay",201805,10000027,39,{"$f":"SUBTOTAL(9,H840:H859)","v":6039.75}]
[]
["CLLR","Hastings Councillor Payroll",200935,"Scott, Philip","Special Responsibility",201801,10000000,108.25]
["CLLR","Hastings Councillor Payroll",200935,"Scott, Philip","Special Responsibility",201802,10000008,86.94]
["CLLR","Hastings Councillor Payroll",200935,"Scott, Philip","Special Responsibility",201803,10000010,81.83]
["CLLR","Hastings Councillor Payroll",200935,"Scott, Philip","Special Responsibility",201804,10000012,81.83]
["CLLR","Hastings Councillor Payroll",200935,"Scott, Philip","Special Responsibility",201805,10000027,81.83]
["CLLR","Hastings Councillor Payroll",200935,"Scott, Philip","Special Responsibility",201806,10000043,81.83]
["CLLR","Hastings Councillor Payroll",200935,"Scott, Philip","Special Responsibility",201807,10000048,81.83]
["CLLR","Hastings Councillor Payroll",200935,"Scott, Philip","Special Responsibility",201808,10000053,81.83]
["CLLR","Hastings Councillor Payroll",200935,"Scott, Philip","Special Responsibility",201809,10000058,81.83]
["CLLR","Hastings Councillor Payroll",200935,"Scott, Philip","Special Responsibility",201810,10000062,81.83]
["CLLR","Hastings Councillor Payroll",200935,"Scott, Philip","Special Responsibility",201811,10000069,81.83]
["CLLR","Hastings Councillor Payroll",200935,"Scott, Philip","Special Responsibility",201812,10000080,81.83]
["CLLR","Hastings Councillor Payroll",200935,"Scott, Philip","Special Responsibility",201901,10000084,83.5]
["CLLR","Hastings Councillor Payroll",200935,"Scott, Philip","Special Responsibility",201902,10000089,83.5]
["CLLR","Hastings Councillor Payroll",200935,"Scott, Philip","Special Responsibility",201903,10000097,83.5]
["CLLR","Hastings Councillor Payroll",200935,"Scott, Philip","Special Responsibility",201904,10000106,83.5]
["CLLR","Hastings Councillor Payroll",200935,"Scott, Philip","Special Responsibility",201905,10000113,83.5]
["CLLR","Hastings Councillor Payroll",200935,"Scott, Philip","Special Responsibility",201906,10000122,83.5]
["CLLR","Hastings Councillor Payroll",200935,"Scott, Philip","Special Responsibility",201907,10000135,83.5]
["CLLR","Hastings Councillor Payroll",200935,"Scott, Philip","Special Responsibility Adj",201802,10000008,21.31]
["CLLR","Hastings Councillor Payroll",200935,"Scott, Philip","Special Responsibility Adj",201803,10000010,-24.16]
["CLLR","Hastings Councillor Payroll",200935,"Scott, Philip","Special Responsibility Adj",201804,10000012,-1.58]
["CLLR","Hastings Councillor Payroll",200935,"Scott, Philip","Special Responsibility Backpay",201805,10000027,7.08,{"$f":"SUBTOTAL(9,H861:H883)","v":1016.1400000000002}]
[]
["CLLR","Hastings Councillor Payroll",200958,"Sinden, Nigel","Basic Pay",201801,10000000,492.75]
["CLLR","Hastings Councillor Payroll",200958,"Sinden, Nigel","Basic Pay",201802,10000008,492.75]
["CLLR","Hastings Councillor Payroll",200958,"Sinden, Nigel","Basic Pay",201803,10000010,492.75]
["CLLR","Hastings Councillor Payroll",200958,"Sinden, Nigel","Basic Pay",201804,10000012,502.5]
["CLLR","Hastings Councillor Payroll",200958,"Sinden, Nigel","Basic Pay",201805,10000027,502.5]
["CLLR","Hastings Councillor Payroll",200958,"Sinden, Nigel","Basic Pay",201806,10000043,502.5]
["CLLR","Hastings Councillor Payroll",200958,"Sinden, Nigel","Basic Pay",201807,10000048,502.5]
["CLLR","Hastings Councillor Payroll",200958,"Sinden, Nigel","Basic Pay",201808,10000053,502.5]
["CLLR","Hastings Councillor Payroll",200958,"Sinden, Nigel","Basic Pay",201809,10000058,502.5]
["CLLR","Hastings Councillor Payroll",200958,"Sinden, Nigel","Basic Pay",201810,10000062,502.5]
["CLLR","Hastings Councillor Payroll",200958,"Sinden, Nigel","Basic Pay",201811,10000069,502.5]
["CLLR","Hastings Councillor Payroll",200958,"Sinden, Nigel","Basic Pay",201812,10000080,502.5]
["CLLR","Hastings Councillor Payroll",200958,"Sinden, Nigel","Basic Pay",201901,10000084,512.5]
["CLLR","Hastings Councillor Payroll",200958,"Sinden, Nigel","Basic Pay",201902,10000089,512.5]
["CLLR","Hastings Councillor Payroll",200958,"Sinden, Nigel","Basic Pay",201903,10000097,512.5]
["CLLR","Hastings Councillor Payroll",200958,"Sinden, Nigel","Basic Pay",201904,10000106,512.5]
["CLLR","Hastings Councillor Payroll",200958,"Sinden, Nigel","Basic Pay",201905,10000113,512.5]
["CLLR","Hastings Councillor Payroll",200958,"Sinden, Nigel","Basic Pay",201906,10000122,512.5]
["CLLR","Hastings Councillor Payroll",200958,"Sinden, Nigel","Basic Pay",201907,10000135,512.5]
["CLLR","Hastings Councillor Payroll",200958,"Sinden, Nigel","Basic Pay Backpay",201805,10000027,39,{"$f":"SUBTOTAL(9,H885:H904)","v":6039.75}]
[]
["CLLR","Hastings Councillor Payroll",200958,"Sinden, Nigel","Private Car Mileage",201802,10000008,9]
["CLLR","Hastings Councillor Payroll",200958,"Sinden, Nigel","Private Car Mileage",201803,10000010,38.7]
["CLLR","Hastings Councillor Payroll",200958,"Sinden, Nigel","Private Car Mileage",201804,10000012,233.5]
["CLLR","Hastings Councillor Payroll",200958,"Sinden, Nigel","Private Car Mileage",201805,10000027,28]
["CLLR","Hastings Councillor Payroll",200958,"Sinden, Nigel","Private Car Mileage",201807,10000048,76.5]
["CLLR","Hastings Councillor Payroll",200958,"Sinden, Nigel","Private Car Mileage",201808,10000053,17.55]
["CLLR","Hastings Councillor Payroll",200958,"Sinden, Nigel","Private Car Mileage",201810,10000062,49.5,{"$f":"SUBTOTAL(9,H906:H912)","v":452.75}]
["CLLR","Hastings Councillor Payroll",200958,"Sinden, Nigel","Private Car Mileage",201901,10000084,98.55]
["CLLR","Hastings Councillor Payroll",200958,"Sinden, Nigel","Private Car Mileage",201902,10000089,69.75]
["CLLR","Hastings Councillor Payroll",200958,"Sinden, Nigel","Private Car Mileage",201903,10000097,103.5]
["CLLR","Hastings Councillor Payroll",200958,"Sinden, Nigel","Private Car Mileage",201904,10000106,84.15]
["CLLR","Hastings Councillor Payroll",200958,"Sinden, Nigel","Private Car Mileage",201905,10000113,43.83]
["CLLR","Hastings Councillor Payroll",200958,"Sinden, Nigel","Private Car Mileage",201906,10000122,18.45]
["CLLR","Hastings Councillor Payroll",200958,"Sinden, Nigel","Private Car Mileage",201907,10000135,14]
[]
["CLLR","Hastings Councillor Payroll",200958,"Sinden, Nigel","Special Responsibility",201801,10000000,23.5]
["CLLR","Hastings Councillor Payroll",200958,"Sinden, Nigel","Special Responsibility",201802,10000008,4.55]
["CLLR","Hastings Councillor Payroll",200958,"Sinden, Nigel","Special Responsibility Adj",201802,10000008,18.95]
["CLLR","Hastings Councillor Payroll",200958,"Sinden, Nigel","Special Responsibility Adj",201803,10000010,-18.95]
["CLLR","Hastings Councillor Payroll",200958,"Sinden, Nigel","Special Responsibility Adj",201807,10000048,104.04]
["CLLR","Hastings Councillor Payroll",200958,"Sinden, Nigel","Special Responsibility Backpay",201805,10000027,4.64,{"$f":"SUBTOTAL(9,H921:H926)","v":136.73}]
[]
["CLLR","Hastings Councillor Payroll",201002,"Street, Richard","Basic Pay",201801,10000000,492.75]
["CLLR","Hastings Councillor Payroll",201002,"Street, Richard","Basic Pay",201802,10000008,95.37,{"$f":"SUBTOTAL(9,H928:H929)","v":588.12}]
[]
["CLLR","Hastings Councillor Payroll",201002,"Street, Richard","Special Responsibility",201801,10000000,295.75]
["CLLR","Hastings Councillor Payroll",201002,"Street, Richard","Special Responsibility",201802,10000008,57.24,{"$f":"SUBTOTAL(9,H931:H932)","v":352.99}]
[]
["CLLR","Hastings Councillor Payroll",201048,"Turner, Michael","Basic Pay",201801,10000000,492.75]
["CLLR","Hastings Councillor Payroll",201048,"Turner, Michael","Basic Pay",201802,10000008,492.75]
["CLLR","Hastings Councillor Payroll",201048,"Turner, Michael","Basic Pay",201803,10000010,492.75]
["CLLR","Hastings Councillor Payroll",201048,"Turner, Michael","Basic Pay",201804,10000012,502.5]
["CLLR","Hastings Councillor Payroll",201048,"Turner, Michael","Basic Pay",201805,10000027,502.5]
["CLLR","Hastings Councillor Payroll",201048,"Turner, Michael","Basic Pay",201806,10000043,502.5]
["CLLR","Hastings Councillor Payroll",201048,"Turner, Michael","Basic Pay",201807,10000048,502.5]
["CLLR","Hastings Councillor Payroll",201048,"Turner, Michael","Basic Pay",201808,10000053,502.5]
["CLLR","Hastings Councillor Payroll",201048,"Turner, Michael","Basic Pay",201809,10000058,502.5]
["CLLR","Hastings Councillor Payroll",201048,"Turner, Michael","Basic Pay",201810,10000062,502.5]
["CLLR","Hastings Councillor Payroll",201048,"Turner, Michael","Basic Pay",201811,10000069,502.5]
["CLLR","Hastings Councillor Payroll",201048,"Turner, Michael","Basic Pay",201812,10000080,502.5]
["CLLR","Hastings Councillor Payroll",201048,"Turner, Michael","Basic Pay",201901,10000084,512.5]
["CLLR","Hastings Councillor Payroll",201048,"Turner, Michael","Basic Pay",201902,10000089,512.5]
["CLLR","Hastings Councillor Payroll",201048,"Turner, Michael","Basic Pay",201903,10000097,512.5]
["CLLR","Hastings Councillor Payroll",201048,"Turner, Michael","Basic Pay",201904,10000106,512.5]
["CLLR","Hastings Councillor Payroll",201048,"Turner, Michael","Basic Pay",201905,10000113,512.5]
["CLLR","Hastings Councillor Payroll",201048,"Turner, Michael","Basic Pay",201906,10000122,512.5]
["CLLR","Hastings Councillor Payroll",201048,"Turner, Michael","Basic Pay",201907,10000135,512.5]
["CLLR","Hastings Councillor Payroll",201048,"Turner, Michael","Basic Pay Backpay",201805,10000027,39,{"$f":"SUBTOTAL(9,H934:H953)","v":6039.75}]
[]
["CLLR","Hastings Councillor Payroll",201089,"Webb, Trevor","Basic Pay",201801,10000000,492.75]
["CLLR","Hastings Councillor Payroll",201089,"Webb, Trevor","Basic Pay",201802,10000008,492.75]
["CLLR","Hastings Councillor Payroll",201089,"Webb, Trevor","Basic Pay",201803,10000010,492.75]
["CLLR","Hastings Councillor Payroll",201089,"Webb, Trevor","Basic Pay",201804,10000012,502.5]
["CLLR","Hastings Councillor Payroll",201089,"Webb, Trevor","Basic Pay",201805,10000027,502.5]
["CLLR","Hastings Councillor Payroll",201089,"Webb, Trevor","Basic Pay",201806,10000043,502.5]
["CLLR","Hastings Councillor Payroll",201089,"Webb, Trevor","Basic Pay",201807,10000048,502.5]
["CLLR","Hastings Councillor Payroll",201089,"Webb, Trevor","Basic Pay",201808,10000053,502.5]
["CLLR","Hastings Councillor Payroll",201089,"Webb, Trevor","Basic Pay",201809,10000058,502.5]
["CLLR","Hastings Councillor Payroll",201089,"Webb, Trevor","Basic Pay",201810,10000062,502.5]
["CLLR","Hastings Councillor Payroll",201089,"Webb, Trevor","Basic Pay",201811,10000069,502.5]
["CLLR","Hastings Councillor Payroll",201089,"Webb, Trevor","Basic Pay",201812,10000080,502.5]
["CLLR","Hastings Councillor Payroll",201089,"Webb, Trevor","Basic Pay",201901,10000084,512.5]
["CLLR","Hastings Councillor Payroll",201089,"Webb, Trevor","Basic Pay",201902,10000089,512.5]
["CLLR","Hastings Councillor Payroll",201089,"Webb, Trevor","Basic Pay",201903,10000097,512.5]
["CLLR","Hastings Councillor Payroll",201089,"Webb, Trevor","Basic Pay",201904,10000106,512.5]
["CLLR","Hastings Councillor Payroll",201089,"Webb, Trevor","Basic Pay",201905,10000113,512.5]
["CLLR","Hastings Councillor Payroll",201089,"Webb, Trevor","Basic Pay",201906,10000122,512.5]
["CLLR","Hastings Councillor Payroll",201089,"Webb, Trevor","Basic Pay",201907,10000135,512.5]
["CLLR","Hastings Councillor Payroll",201089,"Webb, Trevor","Basic Pay Backpay",201805,10000027,39,{"$f":"SUBTOTAL(9,H955:H974)","v":6039.75}]
[]
["CLLR","Hastings Councillor Payroll",201089,"Webb, Trevor","Special Responsibility",201801,10000000,246.5]
["CLLR","Hastings Councillor Payroll",201089,"Webb, Trevor","Special Responsibility",201802,10000008,246.5]
["CLLR","Hastings Councillor Payroll",201089,"Webb, Trevor","Special Responsibility",201803,10000010,246.5]
["CLLR","Hastings Councillor Payroll",201089,"Webb, Trevor","Special Responsibility",201804,10000012,246.5]
["CLLR","Hastings Councillor Payroll",201089,"Webb, Trevor","Special Responsibility",201805,10000027,251.42]
["CLLR","Hastings Councillor Payroll",201089,"Webb, Trevor","Special Responsibility",201806,10000043,251.42]
["CLLR","Hastings Councillor Payroll",201089,"Webb, Trevor","Special Responsibility",201807,10000048,251.42]
["CLLR","Hastings Councillor Payroll",201089,"Webb, Trevor","Special Responsibility",201808,10000053,333.25]
["CLLR","Hastings Councillor Payroll",201089,"Webb, Trevor","Special Responsibility",201809,10000058,333.25]
["CLLR","Hastings Councillor Payroll",201089,"Webb, Trevor","Special Responsibility",201810,10000062,333.25]
["CLLR","Hastings Councillor Payroll",201089,"Webb, Trevor","Special Responsibility",201811,10000069,333.25]
["CLLR","Hastings Councillor Payroll",201089,"Webb, Trevor","Special Responsibility",201812,10000080,333.25]
["CLLR","Hastings Councillor Payroll",201089,"Webb, Trevor","Special Responsibility",201901,10000084,339.92]
["CLLR","Hastings Councillor Payroll",201089,"Webb, Trevor","Special Responsibility",201902,10000089,199.3]
["CLLR","Hastings Councillor Payroll",201089,"Webb, Trevor","Special Responsibility",201903,10000097,83.5]
["CLLR","Hastings Councillor Payroll",201089,"Webb, Trevor","Special Responsibility",201904,10000106,83.5]
["CLLR","Hastings Councillor Payroll",201089,"Webb, Trevor","Special Responsibility",201905,10000113,83.5]
["CLLR","Hastings Councillor Payroll",201089,"Webb, Trevor","Special Responsibility",201906,10000122,83.5]
["CLLR","Hastings Councillor Payroll",201089,"Webb, Trevor","Special Responsibility",201907,10000135,83.5]
["CLLR","Hastings Councillor Payroll",201089,"Webb, Trevor","Special Responsibility Adj",201805,10000027,104.04]
["CLLR","Hastings Councillor Payroll",201089,"Webb, Trevor","Special Responsibility Backpay",201805,10000027,19.68]
["CLLR","Hastings Councillor Payroll",201089,"Webb, Trevor","Special Responsibility Backpay",201808,10000053,39.6,{"$f":"SUBTOTAL(9,H976:H997)","v":3569.83}]
[]
["CLLR","Hastings Councillor Payroll",201093,"Westley, Emily","Basic Pay",201801,10000000,492.75]
["CLLR","Hastings Councillor Payroll",201093,"Westley, Emily","Basic Pay",201802,10000008,95.37,{"$f":"SUBTOTAL(9,H999:H1000)","v":588.12}]
[]
["CLLR","Hastings Councillor Payroll",201111,"Wincott, Michael","Basic Pay",201801,10000000,492.75]
["CLLR","Hastings Councillor Payroll",201111,"Wincott, Michael","Basic Pay",201802,10000008,95.37,{"$f":"SUBTOTAL(9,H1002:H1003)","v":588.12}]
[]
["CLLR","Hastings Councillor Payroll",201111,"Wincott, Michael","Special Responsibility",201801,10000000,80.25]
["CLLR","Hastings Councillor Payroll",201111,"Wincott, Michael","Special Responsibility",201802,10000008,15.53,{"$f":"SUBTOTAL(9,H1005:H1006)","v":95.78}]

{"sheet":"Sheet2","index":1,"n_rows":225,"n_cols":6,"rows_kept":225}
["Period type","Period type(T)","ResID","ResID(T)","PD(T)","£"]
["CLLR","Hastings Councillor Payroll",200035,"Atkins, Liam","Basic Pay",588.12]
[]
[]
["CLLR","Hastings Councillor Payroll",200037,"Bacon, James","Basic Pay",6039.75]
[]
["CLLR","Hastings Councillor Payroll",200037,"Bacon, James","Private Car Mileage",141.64999999999998]
[]
["CLLR","Hastings Councillor Payroll",200037,"Bacon, James","SRA",97.67]
[]
[]
["CLLR","Hastings Councillor Payroll",200060,"CO-OPTED MEMBER","SRA",70.38]
[]
[]
["CLLR","Hastings Councillor Payroll",200068,"Batsford, Andrew","Basic Pay",6039.75]
[]
["CLLR","Hastings Councillor Payroll",200068,"Batsford, Andrew","SRA",6512.040000000001]
[]
[]
["CLLR","Hastings Councillor Payroll",200074,"Beaney, Susan","Basic Pay",6039.75]
["CLLR","Hastings Councillor Payroll",200074,"Beaney, Susan","Private Car Mileage",100]
["CLLR","Hastings Councillor Payroll",200074,"Beaney, Susan","SRA",6512.040000000001]
[]
[]
["CLLR","Hastings Councillor Payroll",200076,"Beaver, Matthew","Basic pay",6039.75]
[]
["CLLR","Hastings Councillor Payroll",200076,"Beaver, Matthew","SRA",981.9600000000003]
[]
[]
["CLLR","Hastings Councillor Payroll",200120,"CO-OPTED MEMBER","SRA",602.82]
[]
[]
["CLLR","Hastings Councillor Payroll",200121,"CO-OPTED MEMBER","SRA",602.82]
[]
[]
["CLLR","Hastings Councillor Payroll",200161,"Barnett, Paul","Basic Pay",5837.37]
[]
[]
["CLLR","Hastings Councillor Payroll",200163,"Battley, Andrew","Basic Pay",5042.61]
[]
[]
["CLLR","Hastings Councillor Payroll",200168,"Beaney, Karl","Basic Pay",5042.61]
[]
[]
["CLLR","Hastings Councillor Payroll",200170,"Berelson, Antonia","Basic Pay",5042.61]
[]
[]
["CLLR","Hastings Councillor Payroll",200173,"Cartwright, Andrew","Basic Pay",588.12]
[]
[]
["CLLR","Hastings Councillor Payroll",200177,"Bishop, Heather","Basic Pay",5837.37]
[]
[]
["CLLR","Hastings Councillor Payroll",200177,"Bishop, Heather","SRA",1382.2600000000004]
[]
[]
["CLLR","Hastings Councillor Payroll",200179,"O'Callaghan, Margi","Basic Pay",5837.37]
[]
[]
["CLLR","Hastings Councillor Payroll",200179,"O'Callaghan, Margi","SRA",1092.4399999999998]
[]
[]
["CLLR","Hastings Councillor Payroll",200181,"Cox, Ruby","Basic Pay",5837.37]
[]
[]
["CLLR","Hastings Councillor Payroll",200181,"Cox, Ruby","SRA",1143.6300000000003]
[]
[]
["CLLR","Hastings Councillor Payroll",200182,"Evans, Maya","Basic Pay",5837.37]
[]
[]
["CLLR","Hastings Councillor Payroll",200183,"Foster, Paul","Basic Pay",5837.37]
[]
[]
["CLLR","Hastings Councillor Payroll",200184,"Charman, Tania","Basic Pay",6039.75]
[]
[]
["CLLR","Hastings Councillor Payroll",200185,"Levane, Leah","Basic Pay"]
["CLLR","Hastings Councillor Payroll",200185,"Levane, Leah","Basic Pay",5042.61]
[]
[]
["CLLR","Hastings Councillor Payroll",200188,"Chowney, Peter","Basic Pay Backpay",6039.75]
[]
[]
["CLLR","Hastings Councillor Payroll",200188,"Chowney, Peter","Private Car Mileage",670.95]
[]
[]
["CLLR","Hastings Councillor Payroll",200188,"Chowney, Peter","SRA",17485.079999999998]
[]
[]
["CLLR","Hastings Councillor Payroll",200191,"Clark, Lee","Basic Pay",588.12]
[]
[]
["CLLR","Hastings Councillor Payroll",200193,"Louise, Dany","Basic Pay",5837.37]
[]
[]
["CLLR","Hastings Councillor Payroll",200194,"Clarke, Martin","Basic Pay",588.12]
[]
["CLLR","Hastings Councillor Payroll",200194,"Clarke, Martin","SRA",95.78]
[]
[]
["CLLR","Hastings Councillor Payroll",200199,"Marlow-Eastwood, Sorrell","Basic Pay",5440.29]
[]
[]
["CLLR","Hastings Councillor Payroll",200199,"Marlow-Eastwood, Sorrell","SRA",1160.3600000000001]
[]
[]
["CLLR","Hastings Councillor Payroll",200225,"Cooke, Robert","Basic Pay",588.12]
[]
["CLLR","Hastings Councillor Payroll",200225,"Cooke, Robert","SRA",28.04]
[]
["CLLR","Hastings Councillor Payroll",200287,"Davies, Warren","Basic Pay",5575.05]
[]
[]
["CLLR","Hastings Councillor Payroll",200287,"Davies, Warren","SRA",1725.36]
[]
[]
["CLLR","Hastings Councillor Payroll",200319,"Dowling, Bruce","Basic Pay",588.12]
[]
["CLLR","Hastings Councillor Payroll",200319,"Dowling, Bruce","SRA",151.88]
[]
[]
["CLLR","Hastings Councillor Payroll",200321,"Dowling, Terri","Basic Pay",588.12]
[]
[]
["CLLR","Hastings Councillor Payroll",200345,"Edwards, Michael","Basic Pay",6039.75]
[]
[]
["CLLR","Hastings Councillor Payroll",200345,"Edwards, Michael","SRA",986.0400000000002]
[]
[]
["CLLR","Hastings Councillor Payroll",200384,"Fitzgerald, Colin","Basic Pay",6039.75]
["CLLR","Hastings Councillor Payroll",200384,"Fitzgerald, Colin","Basic Pay Backpay"]
[]
["CLLR","Hastings Councillor Payroll",200384,"Fitzgerald, Colin","SRA",6512.040000000001]
[]
[]
["CLLR","Hastings Councillor Payroll",200394,"Forward, Kim","Basic Pay",6039.75]
[]
["CLLR","Hastings Councillor Payroll",200394,"Forward, Kim","SRA",11977.079999999998]
[]
[]
["CLLR","Hastings Councillor Payroll",200583,"Howard, Michael","Basic Pay",588.12]
[]
["CLLR","Hastings Councillor Payroll",200583,"Howard, Michael","SRA",57.59]
[]
[]
["CLLR","Hastings Councillor Payroll",200661,"Lee, Rob","Basic Pay",6039.75]
[]
["CLLR","Hastings Councillor Payroll",200661,"Lee, Rob","SRA",6018.12]
[]
[]
["CLLR","Hastings Councillor Payroll",200804,"CO-OPTED MEMBER","SRA",70.38]
[]
[]
["CLLR","Hastings Councillor Payroll",200824,"Patmore, Andy","Basic Pay",6039.75]
[]
["CLLR","Hastings Councillor Payroll",200824,"Patmore, Andy","SRA",4831.200000000001]
[]
[]
["CLLR","Hastings Councillor Payroll",200827,"CO-OPTED MEMBER","SRA",70.38]
[]
[]
["CLLR","Hastings Councillor Payroll",200854,"Poole, Dawn","Basic Pay",588.12]
[]
["CLLR","Hastings Councillor Payroll",200854,"Poole, Dawn","SRA",634.97]
[]
[]
["CLLR","Hastings Councillor Payroll",200867,"CO-OPTED MEMBER","SRA",70.38]
[]
[]
["CLLR","Hastings Councillor Payroll",200870,"Rankin, John","Basic Pay",6039.75]
[]
["CLLR","Hastings Councillor Payroll",200870,"Rankin, John","SRA",3017.0400000000004]
[]
[]
["CLLR","Hastings Councillor Payroll",200895,"Roberts, Alan","Basic Pay",6039.75]
[]
["CLLR","Hastings Councillor Payroll",200895,"Roberts, Alan","SRA",3961.75]
[]
[]
["CLLR","Hastings Councillor Payroll",200901,"Rogers, Judy","Basic Pay",6039.75]
[]
["CLLR","Hastings Councillor Payroll",200901,"Rogers, Judy","Private Car Mileage",13.35]
[]
["CLLR","Hastings Councillor Payroll",200901,"Rogers, Judy","SRA",5990.6]
[]
[]
["CLLR","Hastings Councillor Payroll",200918,"Sabetian, Dominic","Basic Pay",6039.75]
[]
["CLLR","Hastings Councillor Payroll",200918,"Sabetian, Dominic","SRA",981.9600000000003]
[]
[]
["CLLR","Hastings Councillor Payroll",200935,"Scott, Philip","Basic Pay",6039.75]
[]
["CLLR","Hastings Councillor Payroll",200935,"Scott, Philip","SRA",1016.1400000000002]
[]
[]
["CLLR","Hastings Councillor Payroll",200958,"Sinden, Nigel","Basic Pay",6039.75]
[]
["CLLR","Hastings Councillor Payroll",200958,"Sinden, Nigel","Private Car Mileage"]
["CLLR","Hastings Councillor Payroll",200958,"Sinden, Nigel","Private Car Mileage",452.75]
[]
["CLLR","Hastings Councillor Payroll",200958,"Sinden, Nigel","Special Responsibility",136.73]
[]
[]
["CLLR","Hastings Councillor Payroll",201002,"Street, Richard","Basic Pay",588.12]
[]
["CLLR","Hastings Councillor Payroll",201002,"Street, Richard","SRA",352.99]
[]
[]
["CLLR","Hastings Councillor Payroll",201048,"Turner, Michael","Basic Pay",6039.75]
[]
[]
["CLLR","Hastings Councillor Payroll",201089,"Webb, Trevor","Basic Pay",6039.75]
[]
["CLLR","Hastings Councillor Payroll",201089,"Webb, Trevor","Special Responsibility",3569.83]
[]
[]
["CLLR","Hastings Councillor Payroll",201093,"Westley, Emily","Basic Pay",588.12]
[]
[]
["CLLR","Hastings Councillor Payroll",201111,"Wincott, Michael","Basic Pay",588.12]
[]
["CLLR","Hastings Councillor Payroll",201111,"Wincott, Michael","Special Responsibility",95.78]

{"sheet":"Sheet3","index":2,"n_rows":0,"n_cols":0,"rows_kept":0}